Publisher Label,Publisher URI,"Supplier ID","Supplier","Invoice No.","Amount (£)","Purpose","Transaction Number","Payment Date","Organisational Unit","Cost Centre(T)","Internal Category Number"
"Wolverhampton City Council","http://opendatacommunities.org/id/metropolitan-district-council/wolverhampton","711913","Interserve Fire Services Ltd","360640FS","68.25","Equipment - R & M","130191673","03/11/2017","Maintenance Programme","Centralised R&M","R4003"
"Wolverhampton City Council","http://opendatacommunities.org/id/metropolitan-district-council/wolverhampton","711913","Interserve Fire Services Ltd","360637FS","75.00","Equipment - R & M","130191670","03/11/2017","Maintenance Programme","Centralised R&M","R4003"
"Wolverhampton City Council","http://opendatacommunities.org/id/metropolitan-district-council/wolverhampton","711913","Interserve Fire Services Ltd","360636FS","328.39","Equipment - R & M","130191669","03/11/2017","Facilities Management","Caretakers Community Centre","R4003"
"Wolverhampton City Council","http://opendatacommunities.org/id/metropolitan-district-council/wolverhampton","711913","Interserve Fire Services Ltd","905385FS","-749.43","Equipment - R & M","130191999","15/11/2017","Facilities Management","Caretakers Community Centre","R4003"
"Wolverhampton City Council","http://opendatacommunities.org/id/metropolitan-district-council/wolverhampton","711913","Interserve Fire Services Ltd","358932FS","749.43","Equipment - R & M","130187617","15/11/2017","Facilities Management","Caretakers Community Centre","R4003"
"Wolverhampton City Council","http://opendatacommunities.org/id/metropolitan-district-council/wolverhampton","711913","Interserve Fire Services Ltd","905342FS","-134.24","Equipment - R & M","130185319","15/11/2017","Maintenance Programme","Centralised R&M","R4003"
"Wolverhampton City Council","http://opendatacommunities.org/id/metropolitan-district-council/wolverhampton","711913","Interserve Fire Services Ltd","364040FS","512.39","Equipment - R & M","130193238","15/11/2017","Maintenance Programme","Centralised R&M","R4003"
"Wolverhampton City Council","http://opendatacommunities.org/id/metropolitan-district-council/wolverhampton","711913","Interserve Fire Services Ltd","360913FS","545.00","Equipment - R & M","130193191","01/11/2017","Maintenance Programme","Centralised R&M","R4003"
"Wolverhampton City Council","http://opendatacommunities.org/id/metropolitan-district-council/wolverhampton","711913","Interserve Fire Services Ltd","360911FS","50.00","Equipment - R & M","130193190","01/11/2017","Maintenance Programme","Centralised R&M","R4003"
"Wolverhampton City Council","http://opendatacommunities.org/id/metropolitan-district-council/wolverhampton","711913","Interserve Fire Services Ltd","360946FS","186.50","Equipment - R & M","130193210","03/11/2017","Maintenance Programme","Centralised R&M","R4003"
"Wolverhampton City Council","http://opendatacommunities.org/id/metropolitan-district-council/wolverhampton","711913","Interserve Fire Services Ltd","360947FS","157.33","Equipment - R & M","130193211","03/11/2017","Maintenance Programme","Centralised R&M","R4003"
"Wolverhampton City Council","http://opendatacommunities.org/id/metropolitan-district-council/wolverhampton","711913","Interserve Fire Services Ltd","362077FS","33.56","Equipment - R & M","130191674","03/11/2017","Maintenance Programme","Centralised R&M","R4003"
"Wolverhampton City Council","http://opendatacommunities.org/id/metropolitan-district-council/wolverhampton","711913","Interserve Fire Services Ltd","36091OFS","12.49","Equipment - R & M","130193193","03/11/2017","Maintenance Programme","Centralised R&M","R4003"
"Wolverhampton City Council","http://opendatacommunities.org/id/metropolitan-district-council/wolverhampton","711913","Interserve Fire Services Ltd","36091OFS","21.07","Equipment - R & M","130193193","03/11/2017","Maintenance Programme","Centralised R&M","R4003"
"Wolverhampton City Council","http://opendatacommunities.org/id/metropolitan-district-council/wolverhampton","711913","Interserve Fire Services Ltd","360921FS","67.12","Equipment - R & M","130193195","03/11/2017","Maintenance Programme","Centralised R&M","R4003"
"Wolverhampton City Council","http://opendatacommunities.org/id/metropolitan-district-council/wolverhampton","711913","Interserve Fire Services Ltd","360924FS","335.60","Equipment - R & M","130193196","03/11/2017","Maintenance Programme","Centralised R&M","R4003"
"Wolverhampton City Council","http://opendatacommunities.org/id/metropolitan-district-council/wolverhampton","711913","Interserve Fire Services Ltd","360925FS","335.63","Equipment - R & M","130193197","03/11/2017","Maintenance Programme","Centralised R&M","R4003"
"Wolverhampton City Council","http://opendatacommunities.org/id/metropolitan-district-council/wolverhampton","711913","Interserve Fire Services Ltd","360920FS","369.16","Equipment - R & M","130193194","03/11/2017","Maintenance Programme","Centralised R&M","R4003"
"Wolverhampton City Council","http://opendatacommunities.org/id/metropolitan-district-council/wolverhampton","711913","Interserve Fire Services Ltd","364038FS","302.07","Equipment - R & M","130193236","15/11/2017","Maintenance Programme","Centralised R&M","R4003"
"Wolverhampton City Council","http://opendatacommunities.org/id/metropolitan-district-council/wolverhampton","711913","Interserve Fire Services Ltd","364039FS","268.54","Equipment - R & M","130193237","15/11/2017","Maintenance Programme","Centralised R&M","R4003"
"Wolverhampton City Council","http://opendatacommunities.org/id/metropolitan-district-council/wolverhampton","711913","Interserve Fire Services Ltd","360980FS","132.70","Equipment - R & M","130193234","01/11/2017","Maintenance Programme","Centralised R&M","R4003"
"Wolverhampton City Council","http://opendatacommunities.org/id/metropolitan-district-council/wolverhampton","711913","Interserve Fire Services Ltd","360979FS","50.00","Equipment - R & M","130193233","01/11/2017","Facilities Management","Magistrates","R4003"
"Wolverhampton City Council","http://opendatacommunities.org/id/metropolitan-district-council/wolverhampton","711913","Interserve Fire Services Ltd","360703FS","77.50","Equipment - R & M","130193182","01/11/2017","Maintenance Programme","Centralised R&M","R4003"
"Wolverhampton City Council","http://opendatacommunities.org/id/metropolitan-district-council/wolverhampton","711913","Interserve Fire Services Ltd","360704FS","50.00","Equipment - R & M","130193183","01/11/2017","Maintenance Programme","Centralised R&M","R4003"
"Wolverhampton City Council","http://opendatacommunities.org/id/metropolitan-district-council/wolverhampton","711913","Interserve Fire Services Ltd","360706FS","50.00","Equipment - R & M","130193185","01/11/2017","Maintenance Programme","Centralised R&M","R4003"
"Wolverhampton City Council","http://opendatacommunities.org/id/metropolitan-district-council/wolverhampton","711913","Interserve Fire Services Ltd","360695FS","237.44","Equipment - R & M","130193178","01/11/2017","Maintenance Programme","Centralised R&M","R4003"
"Wolverhampton City Council","http://opendatacommunities.org/id/metropolitan-district-council/wolverhampton","711913","Interserve Fire Services Ltd","360981FS","119.66","Equipment - R & M","130193235","01/11/2017","Facilities Management","Caretakers Community Centre","R4003"
"Wolverhampton City Council","http://opendatacommunities.org/id/metropolitan-district-council/wolverhampton","711913","Interserve Fire Services Ltd","360691FS","48.68","Equipment - R & M","130193176","01/11/2017","Maintenance Programme","Centralised R&M","R4003"
"Wolverhampton City Council","http://opendatacommunities.org/id/metropolitan-district-council/wolverhampton","711913","Interserve Fire Services Ltd","360700FS","64.95","Equipment - R & M","130193180","01/11/2017","Skills","Connexions Contract","R4003"
"Wolverhampton City Council","http://opendatacommunities.org/id/metropolitan-district-council/wolverhampton","711913","Interserve Fire Services Ltd","360702FS","117.00","Equipment - R & M","130193181","01/11/2017","Bereavement Services","Crematorium","R4003"
"Wolverhampton City Council","http://opendatacommunities.org/id/metropolitan-district-council/wolverhampton","711913","Interserve Fire Services Ltd","360975FS","86.29","Equipment - R & M","130193230","01/11/2017","Maintenance Programme","Centralised R&M","R4003"
"Wolverhampton City Council","http://opendatacommunities.org/id/metropolitan-district-council/wolverhampton","711913","Interserve Fire Services Ltd","360705FS","83.37","Equipment - R & M","130193184","01/11/2017","Bereavement Services","Cemeteries","R4003"
"Wolverhampton City Council","http://opendatacommunities.org/id/metropolitan-district-council/wolverhampton","711913","Interserve Fire Services Ltd","360967FS","50.00","Equipment - R & M","130193223","01/11/2017","Maintenance Programme","Centralised R&M","R4003"
"Wolverhampton City Council","http://opendatacommunities.org/id/metropolitan-district-council/wolverhampton","711913","Interserve Fire Services Ltd","360969FS","50.00","Equipment - R & M","130193225","01/11/2017","Bereavement Services","Cemeteries","R4003"
"Wolverhampton City Council","http://opendatacommunities.org/id/metropolitan-district-council/wolverhampton","711913","Interserve Fire Services Ltd","360970FS","50.00","Equipment - R & M","130193226","01/11/2017","Maintenance Programme","Centralised R&M","R4003"
"Wolverhampton City Council","http://opendatacommunities.org/id/metropolitan-district-council/wolverhampton","711913","Interserve Fire Services Ltd","360973FS","50.00","Equipment - R & M","130193228","01/11/2017","Maintenance Programme","Centralised R&M","R4003"
"Wolverhampton City Council","http://opendatacommunities.org/id/metropolitan-district-council/wolverhampton","711913","Interserve Fire Services Ltd","360971FS","83.50","Equipment - R & M","130193227","01/11/2017","Maintenance Programme","Centralised R&M","R4003"
"Wolverhampton City Council","http://opendatacommunities.org/id/metropolitan-district-council/wolverhampton","711913","Interserve Fire Services Ltd","360965FS","56.74","Equipment - R & M","130193222","01/11/2017","Maintenance Programme","Centralised R&M","R4003"
"Wolverhampton City Council","http://opendatacommunities.org/id/metropolitan-district-council/wolverhampton","711913","Interserve Fire Services Ltd","360960FS","276.63","Equipment - R & M","130193219","01/11/2017","Maintenance Programme","Centralised R&M","R4003"
"Wolverhampton City Council","http://opendatacommunities.org/id/metropolitan-district-council/wolverhampton","711913","Interserve Fire Services Ltd","360937FS","514.33","Equipment - R & M","130193204","01/11/2017","Facilities Management","Caretakers Community Centre","R4003"
"Wolverhampton City Council","http://opendatacommunities.org/id/metropolitan-district-council/wolverhampton","711913","Interserve Fire Services Ltd","360939FS","905.58","Equipment - R & M","130193205","01/11/2017","Maintenance Programme","Centralised R&M","R4003"
"Wolverhampton City Council","http://opendatacommunities.org/id/metropolitan-district-council/wolverhampton","711913","Interserve Fire Services Ltd","360941FS","301.26","Equipment - R & M","130193207","01/11/2017","Facilities Management","Parkfields Office Accomodation","R4003"
"Wolverhampton City Council","http://opendatacommunities.org/id/metropolitan-district-council/wolverhampton","711913","Interserve Fire Services Ltd","360934FS","594.23","Equipment - R & M","130193201","01/11/2017","Maintenance Programme","Centralised R&M","R4003"
"Wolverhampton City Council","http://opendatacommunities.org/id/metropolitan-district-council/wolverhampton","711913","Interserve Fire Services Ltd","360957FS","3,980.03","Equipment - R & M","130193217","01/11/2017","Maintenance Programme","Centralised R&M","R4003"
"Wolverhampton City Council","http://opendatacommunities.org/id/metropolitan-district-council/wolverhampton","711913","Interserve Fire Services Ltd","360956FS","165.00","Equipment - R & M","130193216","01/11/2017","Facilities Management","Magistrates","R4003"
"Wolverhampton City Council","http://opendatacommunities.org/id/metropolitan-district-council/wolverhampton","711913","Interserve Fire Services Ltd","360936FS","136.50","Equipment - R & M","130193203","01/11/2017","Maintenance Programme","Centralised R&M","R4003"
"Wolverhampton City Council","http://opendatacommunities.org/id/metropolitan-district-council/wolverhampton","711913","Interserve Fire Services Ltd","360948FS","63.00","Equipment - R & M","130193212","01/11/2017","Maintenance Programme","Centralised R&M","R4003"
"Wolverhampton City Council","http://opendatacommunities.org/id/metropolitan-district-council/wolverhampton","711913","Interserve Fire Services Ltd","360951FS","136.50","Equipment - R & M","130193213","01/11/2017","Maintenance Programme","Centralised R&M","R4003"
"Wolverhampton City Council","http://opendatacommunities.org/id/metropolitan-district-council/wolverhampton","711913","Interserve Fire Services Ltd","360952FS","50.00","Equipment - R & M","130193214","01/11/2017","Maintenance Programme","Centralised R&M","R4003"
"Wolverhampton City Council","http://opendatacommunities.org/id/metropolitan-district-council/wolverhampton","711913","Interserve Fire Services Ltd","360815FS","63.00","Equipment - R & M","130193186","01/11/2017","Maintenance Programme","Centralised R&M","R4003"
"Wolverhampton City Council","http://opendatacommunities.org/id/metropolitan-district-council/wolverhampton","711913","Interserve Fire Services Ltd","360958FS","66.75","Equipment - R & M","130193218","01/11/2017","Skills","Connexions Contract","R4003"
"Wolverhampton City Council","http://opendatacommunities.org/id/metropolitan-district-council/wolverhampton","711913","Interserve Fire Services Ltd","360822FS","63.00","Equipment - R & M","130191980","01/11/2017","Maintenance Programme","Centralised R&M","R4003"
"Wolverhampton City Council","http://opendatacommunities.org/id/metropolitan-district-council/wolverhampton","711913","Interserve Fire Services Ltd","360974FS","66.75","Equipment - R & M","130193229","01/11/2017","Maintenance Programme","Centralised R&M","R4003"
"Wolverhampton City Council","http://opendatacommunities.org/id/metropolitan-district-council/wolverhampton","711913","Interserve Fire Services Ltd","360816FS","63.00","Equipment - R & M","130193187","01/11/2017","Maintenance Programme","Centralised R&M","R4003"
"Wolverhampton City Council","http://opendatacommunities.org/id/metropolitan-district-council/wolverhampton","711913","Interserve Fire Services Ltd","360817FS","63.00","Equipment - R & M","130193188","01/11/2017","Maintenance Programme","Centralised R&M","R4003"
"Wolverhampton City Council","http://opendatacommunities.org/id/metropolitan-district-council/wolverhampton","711913","Interserve Fire Services Ltd","360944FS","63.00","Equipment - R & M","130193209","01/11/2017","Maintenance Programme","Centralised R&M","R4003"
"Wolverhampton City Council","http://opendatacommunities.org/id/metropolitan-district-council/wolverhampton","711913","Interserve Fire Services Ltd","360943FS","190.70","Equipment - R & M","130193208","01/11/2017","Maintenance Programme","Centralised R&M","R4003"
"Wolverhampton City Council","http://opendatacommunities.org/id/metropolitan-district-council/wolverhampton","711913","Interserve Fire Services Ltd","360820FS","252.00","Equipment - R & M","130191979","01/11/2017","Maintenance Programme","Centralised R&M","R4003"
"Wolverhampton City Council","http://opendatacommunities.org/id/metropolitan-district-council/wolverhampton","711913","Interserve Fire Services Ltd","360954FS","234.26","Equipment - R & M","130193215","01/11/2017","Facilities Management","Parkfields Office Accomodation","R4003"
"Wolverhampton City Council","http://opendatacommunities.org/id/metropolitan-district-council/wolverhampton","711913","Interserve Fire Services Ltd","360964FS","184.00","Equipment - R & M","130193221","01/11/2017","Maintenance Programme","Centralised R&M","R4003"
"Wolverhampton City Council","http://opendatacommunities.org/id/metropolitan-district-council/wolverhampton","711913","Interserve Fire Services Ltd","360935FS","36.76","Equipment - R & M","130193202","01/11/2017","Maintenance Programme","Centralised R&M","R4003"
"Wolverhampton City Council","http://opendatacommunities.org/id/metropolitan-district-council/wolverhampton","711913","Interserve Fire Services Ltd","360940FS","208.97","Equipment - R & M","130193206","01/11/2017","Bereavement Services","Cemeteries","R4003"
"Wolverhampton City Council","http://opendatacommunities.org/id/metropolitan-district-council/wolverhampton","711913","Interserve Fire Services Ltd","360818FS","52.79","Equipment - R & M","130191977","01/11/2017","Maintenance Programme","Centralised R&M","R4003"
"Wolverhampton City Council","http://opendatacommunities.org/id/metropolitan-district-council/wolverhampton","711913","Interserve Fire Services Ltd","360819FS","50.00","Equipment - R & M","130191978","01/11/2017","Bereavement Services","Cemeteries","R4003"
"Wolverhampton City Council","http://opendatacommunities.org/id/metropolitan-district-council/wolverhampton","711913","Interserve Fire Services Ltd","360823FS","50.00","Equipment - R & M","130191981","01/11/2017","Maintenance Programme","Centralised R&M","R4003"
"Wolverhampton City Council","http://opendatacommunities.org/id/metropolitan-district-council/wolverhampton","711913","Interserve Fire Services Ltd","360824FS","50.00","Equipment - R & M","130191982","01/11/2017","Maintenance Programme","Centralised R&M","R4003"
"Wolverhampton City Council","http://opendatacommunities.org/id/metropolitan-district-council/wolverhampton","711913","Interserve Fire Services Ltd","360827FS","50.00","Equipment - R & M","130191983","01/11/2017","Maintenance Programme","Centralised R&M","R4003"
"Wolverhampton City Council","http://opendatacommunities.org/id/metropolitan-district-council/wolverhampton","711913","Interserve Fire Services Ltd","358835FS","756.79","Equipment - R & M","130194262","08/11/2017","Maintenance Programme","Centralised R&M","R4003"
"Wolverhampton City Council","http://opendatacommunities.org/id/metropolitan-district-council/wolverhampton","711913","Interserve Fire Services Ltd","358936FS","791.07","Equipment - R & M","130187618","08/11/2017","Maintenance Programme","Centralised R&M","R4003"
"Wolverhampton City Council","http://opendatacommunities.org/id/metropolitan-district-council/wolverhampton","711913","Interserve Fire Services Ltd","358840FS","994.73","Equipment - R & M","130187616","01/11/2017","Maintenance Programme","Centralised R&M","R4003"
"Wolverhampton City Council","http://opendatacommunities.org/id/metropolitan-district-council/wolverhampton","711913","Interserve Fire Services Ltd","360698FS","166.88","Equipment - R & M","130193179","01/11/2017","Maintenance Programme","Centralised R&M","R4003"
"Wolverhampton City Council","http://opendatacommunities.org/id/metropolitan-district-council/wolverhampton","711913","Interserve Fire Services Ltd","360830FS","165.00","Equipment - R & M","130191985","01/11/2017","Schools","Pupil Referral Units - Braybrook Centre","R4003"
"Wolverhampton City Council","http://opendatacommunities.org/id/metropolitan-district-council/wolverhampton","711913","Interserve Fire Services Ltd","360977FS","122.93","Equipment - R & M","130193231","01/11/2017","Maintenance Programme","Centralised R&M","R4003"
"Wolverhampton City Council","http://opendatacommunities.org/id/metropolitan-district-council/wolverhampton","711913","Interserve Fire Services Ltd","905384FS","-627.92","Equipment - R & M","130191998","01/11/2017","Maintenance Programme","Centralised R&M","R4003"
"Wolverhampton City Council","http://opendatacommunities.org/id/metropolitan-district-council/wolverhampton","711913","Interserve Fire Services Ltd","905420FS","-45.00","Equipment - R & M","130191678","01/11/2017","Maintenance Programme","Centralised R&M","R4003"
"Wolverhampton City Council","http://opendatacommunities.org/id/metropolitan-district-council/wolverhampton","711913","Interserve Fire Services Ltd","360831FS","50.00","Equipment - R & M","130191986","01/11/2017","Schools","Pupil Referral Units - Mid Point","R4003"
"Wolverhampton City Council","http://opendatacommunities.org/id/metropolitan-district-council/wolverhampton","711946","Hollywood Monster","62987","154.59","Signage and Labels","130194743","29/11/2017","Corporate Asset Management","Future Space Decant Area","R4009"
"Wolverhampton City Council","http://opendatacommunities.org/id/metropolitan-district-council/wolverhampton","711946","Hollywood Monster","62487","1,402.55","Signage and Labels","130192822","15/11/2017","Corporate Asset Management","Future Space Decant Area","R4009"
"Wolverhampton City Council","http://opendatacommunities.org/id/metropolitan-district-council/wolverhampton","711946","Hollywood Monster","62280","372.80","Signage and Labels","130193391","01/11/2017","Corporate Asset Management","Future Space Decant Area","R4009"
"Wolverhampton City Council","http://opendatacommunities.org/id/metropolitan-district-council/wolverhampton","711948","Ms PK Moore","40","450.00","No Recourse to Public Funds","130192180","08/11/2017","Child Protection","CIN/CP Social Work Unit - Area 4","R6314"
"Wolverhampton City Council","http://opendatacommunities.org/id/metropolitan-district-council/wolverhampton","712005","YMCA Black Country Group","P15716320171027","90.00","Client Allowances","190388202","01/11/2017","Looked After Children","LAC Transitions Team","R6301"
"Wolverhampton City Council","http://opendatacommunities.org/id/metropolitan-district-council/wolverhampton","712005","YMCA Black Country Group","P15716320171027","360.00","Client Allowances","190388202","01/11/2017","Looked After Children","LAC Transitions Team","R6301"
"Wolverhampton City Council","http://opendatacommunities.org/id/metropolitan-district-council/wolverhampton","712005","YMCA Black Country Group","P15956620171127","90.00","Client Allowances","190397978","29/11/2017","Looked After Children","LAC Transitions Team","R6301"
"Wolverhampton City Council","http://opendatacommunities.org/id/metropolitan-district-council/wolverhampton","712005","YMCA Black Country Group","P15956620171127","90.00","Client Allowances","190397978","29/11/2017","Looked After Children","LAC Transitions Team","R6301"
"Wolverhampton City Council","http://opendatacommunities.org/id/metropolitan-district-council/wolverhampton","712005","YMCA Black Country Group","10709","560.00","TPP - Accommodation","130197145","29/11/2017","Child Protection","CIN/CP Social Work Unit - Area 6","R5603"
"Wolverhampton City Council","http://opendatacommunities.org/id/metropolitan-district-council/wolverhampton","712005","YMCA Black Country Group","P15768120171103","90.00","Client Allowances","190390253","08/11/2017","Looked After Children","LAC Transitions Team","R6301"
"Wolverhampton City Council","http://opendatacommunities.org/id/metropolitan-district-council/wolverhampton","712005","YMCA Black Country Group","P15768120171103","90.00","Client Allowances","190390253","08/11/2017","Looked After Children","LAC Transitions Team","R6301"
"Wolverhampton City Council","http://opendatacommunities.org/id/metropolitan-district-council/wolverhampton","712005","YMCA Black Country Group","P15816620171110","90.00","Client Allowances","190392025","15/11/2017","Looked After Children","LAC Transitions Team","R6301"
"Wolverhampton City Council","http://opendatacommunities.org/id/metropolitan-district-council/wolverhampton","712005","YMCA Black Country Group","P15816620171110","90.00","Client Allowances","190392025","15/11/2017","Looked After Children","LAC Transitions Team","R6301"
"Wolverhampton City Council","http://opendatacommunities.org/id/metropolitan-district-council/wolverhampton","712005","YMCA Black Country Group","P15892320171117","90.00","Client Allowances","190394327","22/11/2017","Looked After Children","LAC Transitions Team","R6301"
"Wolverhampton City Council","http://opendatacommunities.org/id/metropolitan-district-council/wolverhampton","712005","YMCA Black Country Group","P15892320171117","90.00","Client Allowances","190394327","22/11/2017","Looked After Children","LAC Transitions Team","R6301"
"Wolverhampton City Council","http://opendatacommunities.org/id/metropolitan-district-council/wolverhampton","712005","YMCA Black Country Group","P15892320171117","280.00","Client Allowances","190394327","22/11/2017","Looked After Children","LAC Transitions Team","R6301"
"Wolverhampton City Council","http://opendatacommunities.org/id/metropolitan-district-council/wolverhampton","712032","Guide Dogs for the Blind Association","20003201","702.59","TPP - Social Care Support Services","130194884","22/11/2017","Standards and Vulnerable Pupils","SEN Sensory Inclusion","R5501"
"Wolverhampton City Council","http://opendatacommunities.org/id/metropolitan-district-council/wolverhampton","712032","Guide Dogs for the Blind Association","20003202","1,064.52","TPP - Social Care Support Services","130194885","22/11/2017","Standards and Vulnerable Pupils","SEN Sensory Inclusion","R5501"
"Wolverhampton City Council","http://opendatacommunities.org/id/metropolitan-district-council/wolverhampton","712049","Dr Shingankutti Mangalika","DRMM/53678","694.00","Services - Professional Fees","190392944","15/11/2017","Democratic Services","Coroners Service","R4400"
"Wolverhampton City Council","http://opendatacommunities.org/id/metropolitan-district-council/wolverhampton","712049","Dr Shingankutti Mangalika","DRMM/53351","193.60","Services - Professional Fees","190390328","08/11/2017","Democratic Services","Coroners Service","R4400"
"Wolverhampton City Council","http://opendatacommunities.org/id/metropolitan-district-council/wolverhampton","712049","Dr Shingankutti Mangalika","DRMM/53304","567.30","Services - Professional Fees","190395377","22/11/2017","Democratic Services","Coroners Service","R4400"
"Wolverhampton City Council","http://opendatacommunities.org/id/metropolitan-district-council/wolverhampton","712092","Ian Berg Plastics","6756","126.00","Equipment - Purchase","130191469","01/11/2017","School Planning & Resources","Special - Transport","R4000"
"Wolverhampton City Council","http://opendatacommunities.org/id/metropolitan-district-council/wolverhampton","712119","Millstream Associates Limited","MA070104","995.00","Subscriptions","130194103","03/11/2017","Catering","Education Catering - General Overheads","R4701"
"Wolverhampton City Council","http://opendatacommunities.org/id/metropolitan-district-council/wolverhampton","712129","Carol Davies","117","225.00","Services - Professional Fees","130194744","29/11/2017","Headstart","Headstart Phase 3","R4400"
"Wolverhampton City Council","http://opendatacommunities.org/id/metropolitan-district-council/wolverhampton","712129","Carol Davies","118","210.60","Services - Professional Fees","130194745","29/11/2017","Safeguarding","Safeguarding Board - Childrens","R4400"
"Wolverhampton City Council","http://opendatacommunities.org/id/metropolitan-district-council/wolverhampton","712129","Carol Davies","114","210.60","Services - Professional Fees","130192503","08/11/2017","Safeguarding","Safeguarding Board - Childrens","R4400"
"Wolverhampton City Council","http://opendatacommunities.org/id/metropolitan-district-council/wolverhampton","712129","Carol Davies","116","300.00","Services - Professional Fees","130193001","15/11/2017","Headstart","Headstart Phase 3","R4400"
"Wolverhampton City Council","http://opendatacommunities.org/id/metropolitan-district-council/wolverhampton","712129","Carol Davies","115","1,350.00","Services - Professional Fees","130192504","08/11/2017","Headstart","Headstart - Young People Engagement","R4400"
"Wolverhampton City Council","http://opendatacommunities.org/id/metropolitan-district-council/wolverhampton","712156","Crestwood Environmental Ltd","Grant No 023/17c1","2,624.00","Grants paid out","190398052","29/11/2017","-","GF - Black Country Gold ERDF Project","C5000"
"Wolverhampton City Council","http://opendatacommunities.org/id/metropolitan-district-council/wolverhampton","712171","Robert Conway","385/17","75.00","Services - Professional Fees","130193759","22/11/2017","Visitor Economy","Art Galleries - Schools Art SLA Service","R4400"
"Wolverhampton City Council","http://opendatacommunities.org/id/metropolitan-district-council/wolverhampton","712171","Robert Conway","389/17","100.00","Services - Professional Fees","130193760","22/11/2017","Visitor Economy","Art Galleries - Schools Art SLA Service","R4400"
"Wolverhampton City Council","http://opendatacommunities.org/id/metropolitan-district-council/wolverhampton","712242","Panick Keys","2243","140.00","Equipment - Purchase","190395093","22/11/2017","Fleet Services","Fleet Management","R4000"
"Wolverhampton City Council","http://opendatacommunities.org/id/metropolitan-district-council/wolverhampton","712270","Britton and Storey","12028","270.00","Services - Professional Fees","130192823","15/11/2017","Visitor Economy","Collections","R4400"
"Wolverhampton City Council","http://opendatacommunities.org/id/metropolitan-district-council/wolverhampton","712283","Royal Berkshire NHS Foundation Trust","490473 July-Sept 2017","131.00","TPP - Public Health Contracts","190394800","22/11/2017","Contracts","Sexual Health","R5060"
"Wolverhampton City Council","http://opendatacommunities.org/id/metropolitan-district-council/wolverhampton","712327","Anchor Systems (Europe) Ltd","Grant No 035/17c","18,000.00","Grants paid out","190392877","15/11/2017","-","GF - Black Country Gold ERDF Project","C5000"
"Wolverhampton City Council","http://opendatacommunities.org/id/metropolitan-district-council/wolverhampton","712372","Wider Learning","WL0239","9,536.00","Services - Professional Fees","130195961","17/11/2017","Headstart","Headstart - Young People Engagement","R4400"
"Wolverhampton City Council","http://opendatacommunities.org/id/metropolitan-district-council/wolverhampton","712374","Pohwer","SINV 6149","7,039.25","TPP - Social Care Support Services","130194746","29/11/2017","Safeguarding","MCA General","R5501"
"Wolverhampton City Council","http://opendatacommunities.org/id/metropolitan-district-council/wolverhampton","712397","Total ID Ltd","14238","340.00","Signage and Labels","130191839","08/11/2017","Licensing","Licensing - H.Carriage/Pr.Hire Vehicles","R4009"
"Wolverhampton City Council","http://opendatacommunities.org/id/metropolitan-district-council/wolverhampton","712397","Total ID Ltd","14238","9.95","Comms - Postage","130191839","08/11/2017","Licensing","Licensing - H.Carriage/Pr.Hire Vehicles","R4503"
"Wolverhampton City Council","http://opendatacommunities.org/id/metropolitan-district-council/wolverhampton","712455","JISC Collections","903599","300.00","Computing - Licences","130195791","17/11/2017","Digital Transformation Programme","Digital Transformation Programme","R4535"
"Wolverhampton City Council","http://opendatacommunities.org/id/metropolitan-district-council/wolverhampton","712502","Granart Limited","8691","240.00","Materials for resale","130195979","22/11/2017","Bereavement Services","Cemeteries","R4008"
"Wolverhampton City Council","http://opendatacommunities.org/id/metropolitan-district-council/wolverhampton","712502","Granart Limited","8702","124.00","Materials for resale","130195980","22/11/2017","Bereavement Services","Cemeteries","R4008"
"Wolverhampton City Council","http://opendatacommunities.org/id/metropolitan-district-council/wolverhampton","712530","Lift Truck Services Limited","149358","308.00","Hire of Vehicles","190392510","15/11/2017","Fleet Services","Fleet Management","R3200"
"Wolverhampton City Council","http://opendatacommunities.org/id/metropolitan-district-council/wolverhampton","712583","Acuity Legal Limited","18972","1,800.00","Services - Professional Fees","130193393","08/11/2017","Legal Services","Centralised External Legal Costs","R4400"
"Wolverhampton City Council","http://opendatacommunities.org/id/metropolitan-district-council/wolverhampton","712583","Acuity Legal Limited","18935","5,106.50","Services - Professional Fees","130193242","01/11/2017","School Planning & Resources","BSF Refinancing Work","R4400"
"Wolverhampton City Council","http://opendatacommunities.org/id/metropolitan-district-council/wolverhampton","712583","Acuity Legal Limited","18935","2.68","Services - Professional Fees","130193242","01/11/2017","School Planning & Resources","BSF Refinancing Work","R4400"
"Wolverhampton City Council","http://opendatacommunities.org/id/metropolitan-district-council/wolverhampton","712609","Dr Mohammed Abubakar","AM1896/2648","1,802.40","Services - Professional Fees","190388344","01/11/2017","Safeguarding","MCA General","R4400"
"Wolverhampton City Council","http://opendatacommunities.org/id/metropolitan-district-council/wolverhampton","712681","Bettridge School","P15767620171103","600.00","Grant Payments to Individuals","190390248","08/11/2017","Looked After Children","LAC Education Team (LACE)","R6402"
"Wolverhampton City Council","http://opendatacommunities.org/id/metropolitan-district-council/wolverhampton","712697","L B Window Cleaning Services","819","140.00","Window Cleaning","130197193","29/11/2017","Schools","Lanesfield Primary School","R2701"
"Wolverhampton City Council","http://opendatacommunities.org/id/metropolitan-district-council/wolverhampton","712735","Institute of Licensing (Events) Ltd","EVE21622","385.00","Training Expenses","130193761","01/11/2017","Licensing","Licensing - Private Hire Vehicles","R1650"
"Wolverhampton City Council","http://opendatacommunities.org/id/metropolitan-district-council/wolverhampton","712763","WCC CTAX and NNDR uploads only","612345019535(h)","92.00","Council Tax","190390341","08/11/2017","Child Protection","CIN/CP Social Work Unit - Area 5","R2301"
"Wolverhampton City Council","http://opendatacommunities.org/id/metropolitan-district-council/wolverhampton","712763","WCC CTAX and NNDR uploads only","612346688813-f","102.00","Council Tax","190388378","01/11/2017","Child Protection","CIN/CP Social Work Unit - Area 3","R2301"
"Wolverhampton City Council","http://opendatacommunities.org/id/metropolitan-district-council/wolverhampton","712763","WCC CTAX and NNDR uploads only","44781","10.00","R&M - Departmental planned (external)","190391466","10/11/2017","Housing","Housing Regeneration Empty Dwelling Management","R2001"
"Wolverhampton City Council","http://opendatacommunities.org/id/metropolitan-district-council/wolverhampton","712763","WCC CTAX and NNDR uploads only","1109701K 06/11/2017","247.60","Accommodation Costs","190391523","10/11/2017","Looked After Children","LAC Transitions Team","R4900"
"Wolverhampton City Council","http://opendatacommunities.org/id/metropolitan-district-council/wolverhampton","712763","WCC CTAX and NNDR uploads only","1103360F","861.23","Client Allowances","190390703","08/11/2017","Looked After Children","LAC Transitions Team","R6301"
"Wolverhampton City Council","http://opendatacommunities.org/id/metropolitan-district-council/wolverhampton","712763","WCC CTAX and NNDR uploads only","612346283350NOV","631.32","Council Tax","190397813","29/11/2017","Child Protection","Childrens with Disabilities Team","R2301"
"Wolverhampton City Council","http://opendatacommunities.org/id/metropolitan-district-council/wolverhampton","712787","M J Parkes","45865","381.00","Equipment - Purchase","130193919","22/11/2017","Bereavement Services","Coroners","R4000"
"Wolverhampton City Council","http://opendatacommunities.org/id/metropolitan-district-council/wolverhampton","712791","North Yorkshire County Council","430000632","2,175.00","Services - Professional Fees","130196334","22/11/2017","Human Resources","Salary Sacrifice Schemes","R4400"
"Wolverhampton City Council","http://opendatacommunities.org/id/metropolitan-district-council/wolverhampton","712810","Tripod Partners","TRI160161","824.40","Agency Staff","130193247","01/11/2017","Child Protection","MASH","R1100"
"Wolverhampton City Council","http://opendatacommunities.org/id/metropolitan-district-council/wolverhampton","712819","Ramada Park Hall Hotel & Spa","BK105928/1","450.00","Training Expenses","130195092","15/11/2017","Schools","Goldthorn Park Primary School","R1650"
"Wolverhampton City Council","http://opendatacommunities.org/id/metropolitan-district-council/wolverhampton","712825","Jumping Jos Day Nursery","1B","220.00","TPP - Child Care provided for client","130195982","22/11/2017","Child Protection","CIN/CP S17  SW Unit - Area 2","R5034"
"Wolverhampton City Council","http://opendatacommunities.org/id/metropolitan-district-council/wolverhampton","712911","Phoenix Primary EBD School","P15767620171103","300.00","Grant Payments to Individuals","190390248","08/11/2017","Looked After Children","LAC Education Team (LACE)","R6402"
"Wolverhampton City Council","http://opendatacommunities.org/id/metropolitan-district-council/wolverhampton","712917","Dr Abbie L Pugh","DRAP/53844","387.20","Services - Professional Fees","190392948","15/11/2017","Democratic Services","Coroners Service","R4400"
"Wolverhampton City Council","http://opendatacommunities.org/id/metropolitan-district-council/wolverhampton","712929","Aspiring Futures CIC","P2S01","23,920.00","TPP - Social Care Support Services","130180630","24/11/2017","Early Intervention","Transformation Challenge Award","R5501"
"Wolverhampton City Council","http://opendatacommunities.org/id/metropolitan-district-council/wolverhampton","712929","Aspiring Futures CIC","P2S02","5,980.00","TPP - Social Care Support Services","130193005","15/11/2017","Early Intervention","Transformation Challenge Award","R5501"
"Wolverhampton City Council","http://opendatacommunities.org/id/metropolitan-district-council/wolverhampton","712929","Aspiring Futures CIC","P2S01 CR","-23,920.00","TPP - Social Care Support Services","130190976","24/11/2017","Early Intervention","Transformation Challenge Award","R5501"
"Wolverhampton City Council","http://opendatacommunities.org/id/metropolitan-district-council/wolverhampton","712944","The Boho Creative","230874","100.00","Signage and Labels","130197146","29/11/2017","Licensing","Licensing - Private Hire Vehicles","R4009"
"Wolverhampton City Council","http://opendatacommunities.org/id/metropolitan-district-council/wolverhampton","712944","The Boho Creative","230861","300.00","Printing","130194104","03/11/2017","Digital Transformation Programme","Digital Transformation Programme","R4300"
"Wolverhampton City Council","http://opendatacommunities.org/id/metropolitan-district-council/wolverhampton","712944","The Boho Creative","230868","480.00","Marketing \ Non-staff advertising","130195273","24/11/2017","Safeguarding","Safeguarding Partnership Board","R4317"
"Wolverhampton City Council","http://opendatacommunities.org/id/metropolitan-district-council/wolverhampton","712944","The Boho Creative","230857","280.00","Printing","130190099","01/11/2017","Healthier Places Service","Healthy Lifestyles Team","R4300"
"Wolverhampton City Council","http://opendatacommunities.org/id/metropolitan-district-council/wolverhampton","712944","The Boho Creative","230863","420.00","Services - Professional Fees","130194105","03/11/2017","Planning","Planning","R4400"
"Wolverhampton City Council","http://opendatacommunities.org/id/metropolitan-district-council/wolverhampton","712944","The Boho Creative","230862","220.00","Marketing \ Non-staff advertising","130193762","03/11/2017","Strategic Organisation Development","Service Development Team","R4317"
"Wolverhampton City Council","http://opendatacommunities.org/id/metropolitan-district-council/wolverhampton","712944","The Boho Creative","230862","-220.00","Marketing \ Non-staff advertising","130193762","03/11/2017","Strategic Organisation Development","Service Development Team","R4317"
"Wolverhampton City Council","http://opendatacommunities.org/id/metropolitan-district-council/wolverhampton","712944","The Boho Creative","230862","220.00","Marketing \ Non-staff advertising","130193762","03/11/2017","Strategic Organisation Development","Service Development Team","R4317"
"Wolverhampton City Council","http://opendatacommunities.org/id/metropolitan-district-council/wolverhampton","712960","Coventry and Warwickshire Partnership Trust","0000030683 GUM M5 & M6 17/18","789.82","TPP - Public Health Contracts","190393272","15/11/2017","Contracts","Sexual Health","R5060"
"Wolverhampton City Council","http://opendatacommunities.org/id/metropolitan-district-council/wolverhampton","712963","Royal Liverpool and Broadgreen University Hospital","8610063296 Dec 2016","131.81","TPP - Public Health Contracts","190388355","01/11/2017","Contracts","Sexual Health","R5060"
"Wolverhampton City Council","http://opendatacommunities.org/id/metropolitan-district-council/wolverhampton","713008","Wolverley cofe Secondary School","P15767620171103","600.00","Grant Payments to Individuals","190390248","08/11/2017","Looked After Children","LAC Education Team (LACE)","R6402"
"Wolverhampton City Council","http://opendatacommunities.org/id/metropolitan-district-council/wolverhampton","713008","Wolverley cofe Secondary School","P15767620171103","600.00","Grant Payments to Individuals","190390248","08/11/2017","Looked After Children","LAC Education Team (LACE)","R6402"
"Wolverhampton City Council","http://opendatacommunities.org/id/metropolitan-district-council/wolverhampton","713043","Wood Green Academy","P15767620171103","600.00","Grant Payments to Individuals","190390248","08/11/2017","Looked After Children","LAC Education Team (LACE)","R6402"
"Wolverhampton City Council","http://opendatacommunities.org/id/metropolitan-district-council/wolverhampton","713043","Wood Green Academy","P15767620171103","600.00","Grant Payments to Individuals","190390248","08/11/2017","Looked After Children","LAC Education Team (LACE)","R6402"
"Wolverhampton City Council","http://opendatacommunities.org/id/metropolitan-district-council/wolverhampton","713043","Wood Green Academy","P15767620171103","600.00","Grant Payments to Individuals","190390248","08/11/2017","Looked After Children","LAC Education Team (LACE)","R6402"
"Wolverhampton City Council","http://opendatacommunities.org/id/metropolitan-district-council/wolverhampton","713043","Wood Green Academy","P15767620171103","600.00","Grant Payments to Individuals","190390248","08/11/2017","Looked After Children","LAC Education Team (LACE)","R6402"
"Wolverhampton City Council","http://opendatacommunities.org/id/metropolitan-district-council/wolverhampton","713059","Sage Pay Europe Ltd (formely Sage Pay)","EU - 00313821","755.40","Services - Bank Charges","130194748","29/11/2017","Central Corporate Budgets","Corporate Management","R4403"
"Wolverhampton City Council","http://opendatacommunities.org/id/metropolitan-district-council/wolverhampton","713068","Interserve Construction","VWM54759","1,564.78","Construction and Conversion","130196991","29/11/2017","-","Primary Expansion Programme","C1100"
"Wolverhampton City Council","http://opendatacommunities.org/id/metropolitan-district-council/wolverhampton","713075","Aquamo Limited","1342","120.00","Equipment - R & M","130193920","22/11/2017","Leisure Services","Central Baths","R4003"
"Wolverhampton City Council","http://opendatacommunities.org/id/metropolitan-district-council/wolverhampton","713108","Legal Action Group","1801","205.00","Subscriptions","130194106","24/11/2017","Welfare Rights & Financial Assessment","Welfare Rights","R4701"
"Wolverhampton City Council","http://opendatacommunities.org/id/metropolitan-district-council/wolverhampton","713109","DMB Consultancy Ltd","468","1,440.00","Services - Professional Fees","130194107","24/11/2017","Human Resources","Doctors Service","R4400"
"Wolverhampton City Council","http://opendatacommunities.org/id/metropolitan-district-council/wolverhampton","713109","DMB Consultancy Ltd","468","-1,440.00","Services - Professional Fees","130194107","24/11/2017","Human Resources","Doctors Service","R4400"
"Wolverhampton City Council","http://opendatacommunities.org/id/metropolitan-district-council/wolverhampton","713109","DMB Consultancy Ltd","468","1,440.00","Services - Professional Fees","130194107","24/11/2017","Human Resources","Doctors Service","R4400"
"Wolverhampton City Council","http://opendatacommunities.org/id/metropolitan-district-council/wolverhampton","713162","Bita Pathways T/A BETTER Pathways","1274920171106","180.00","TPP - Day Care","190390403","08/11/2017","Learning Disabilities Care Purchasing","LD Care Purchasing (Spot Placements)","R5430"
"Wolverhampton City Council","http://opendatacommunities.org/id/metropolitan-district-council/wolverhampton","713197","Pears Therapy","31102017","480.00","Training Expenses","130194415","29/11/2017","Looked After Children","Adoption and Residence Team & Allowances","R1650"
"Wolverhampton City Council","http://opendatacommunities.org/id/metropolitan-district-council/wolverhampton","713197","Pears Therapy","RK31102017","7,585.40","Direct Work With Children","130194416","29/11/2017","Looked After Children","Adoption Support Fund","R6310"
"Wolverhampton City Council","http://opendatacommunities.org/id/metropolitan-district-council/wolverhampton","713197","Pears Therapy","NZ151017","1,141.00","Direct Work With Children","130193248","01/11/2017","Looked After Children","Adoption Support Fund","R6310"
"Wolverhampton City Council","http://opendatacommunities.org/id/metropolitan-district-council/wolverhampton","713246","Midland Foods Limited","1123588","72.71","Provisions (Not for resale)","130194886","10/11/2017","Older People Provider Services","Bradley Lodge Resource Centre","R4101"
"Wolverhampton City Council","http://opendatacommunities.org/id/metropolitan-district-council/wolverhampton","713246","Midland Foods Limited","1125754","50.07","Provisions (Not for resale)","130194889","17/11/2017","Older People Provider Services","Bradley Lodge Resource Centre","R4101"
"Wolverhampton City Council","http://opendatacommunities.org/id/metropolitan-district-council/wolverhampton","713246","Midland Foods Limited","1127559","45.76","Provisions (Not for resale)","130194895","24/11/2017","Older People Provider Services","Bradley Lodge Resource Centre","R4101"
"Wolverhampton City Council","http://opendatacommunities.org/id/metropolitan-district-council/wolverhampton","713246","Midland Foods Limited","1127443","115.28","Provisions (Not for resale)","130194894","24/11/2017","Older People Provider Services","Bradley Lodge Resource Centre","R4101"
"Wolverhampton City Council","http://opendatacommunities.org/id/metropolitan-district-council/wolverhampton","713246","Midland Foods Limited","1126747","51.65","Provisions (Not for resale)","130194891","24/11/2017","Older People Provider Services","Bradley Lodge Resource Centre","R4101"
"Wolverhampton City Council","http://opendatacommunities.org/id/metropolitan-district-council/wolverhampton","713246","Midland Foods Limited","1126974","35.36","Provisions (Not for resale)","130194893","24/11/2017","Older People Provider Services","Bradley Lodge Resource Centre","R4101"
"Wolverhampton City Council","http://opendatacommunities.org/id/metropolitan-district-council/wolverhampton","713246","Midland Foods Limited","1126750","66.64","Provisions (Not for resale)","130194892","24/11/2017","Older People Provider Services","Blakenhall Resource Centre","R4101"
"Wolverhampton City Council","http://opendatacommunities.org/id/metropolitan-district-council/wolverhampton","713246","Midland Foods Limited","1124677","101.06","Provisions (Not for resale)","130194887","24/11/2017","Older People Provider Services","Bradley Lodge Resource Centre","R4101"
"Wolverhampton City Council","http://opendatacommunities.org/id/metropolitan-district-council/wolverhampton","713246","Midland Foods Limited","1124835","82.93","Provisions (Not for resale)","130194888","24/11/2017","Older People Provider Services","Bradley Lodge Resource Centre","R4101"
"Wolverhampton City Council","http://opendatacommunities.org/id/metropolitan-district-council/wolverhampton","713246","Midland Foods Limited","1125986","16.05","Provisions (Not for resale)","130194890","24/11/2017","Older People Provider Services","Bradley Lodge Resource Centre","R4101"
"Wolverhampton City Council","http://opendatacommunities.org/id/metropolitan-district-council/wolverhampton","713258","MTH Cleaning Equipment Ltd","MTH158896","608.88","Cleaning Supplies and Materials","130196449","24/11/2017","Markets","Bilston Market and Licensed Operations","R2705"
"Wolverhampton City Council","http://opendatacommunities.org/id/metropolitan-district-council/wolverhampton","713258","MTH Cleaning Equipment Ltd","MTH158743","92.50","R&M - Departmental planned (external)","130196319","29/11/2017","Parking Services","Short Stay - Civic Centre","R2001"
"Wolverhampton City Council","http://opendatacommunities.org/id/metropolitan-district-council/wolverhampton","713258","MTH Cleaning Equipment Ltd","MTH158205","1,169.42","Cleaning Supplies and Materials","130194749","10/11/2017","Markets","Bilston Market and Licensed Operations","R2705"
"Wolverhampton City Council","http://opendatacommunities.org/id/metropolitan-district-council/wolverhampton","713258","MTH Cleaning Equipment Ltd","MTH158228","39.95","Equipment - R & M","190395153","22/11/2017","Fleet Services","Fleet Management","R4003"
"Wolverhampton City Council","http://opendatacommunities.org/id/metropolitan-district-council/wolverhampton","713258","MTH Cleaning Equipment Ltd","MTH158228","5.50","Equipment - R & M","190395153","22/11/2017","Fleet Services","Fleet Management","R4003"
"Wolverhampton City Council","http://opendatacommunities.org/id/metropolitan-district-council/wolverhampton","713258","MTH Cleaning Equipment Ltd","MTH158228","45.00","Equipment - R & M","190395153","22/11/2017","Fleet Services","Fleet Management","R4003"
"Wolverhampton City Council","http://opendatacommunities.org/id/metropolitan-district-council/wolverhampton","713258","MTH Cleaning Equipment Ltd","MTH158228","5.50","Equipment - R & M","190395153","22/11/2017","Fleet Services","Fleet Management","R4003"
"Wolverhampton City Council","http://opendatacommunities.org/id/metropolitan-district-council/wolverhampton","713258","MTH Cleaning Equipment Ltd","MTH158744","90.00","R&M - Departmental planned (external)","130196320","22/11/2017","Parking Services","Short Stay - Civic Centre","R2001"
"Wolverhampton City Council","http://opendatacommunities.org/id/metropolitan-district-council/wolverhampton","713264","Holly Hall Maths & Computer College","P15767620171103","600.00","Grant Payments to Individuals","190390248","08/11/2017","Looked After Children","LAC Education Team (LACE)","R6402"
"Wolverhampton City Council","http://opendatacommunities.org/id/metropolitan-district-council/wolverhampton","713264","Holly Hall Maths & Computer College","P15767620171103","600.00","Grant Payments to Individuals","190390248","08/11/2017","Looked After Children","LAC Education Team (LACE)","R6402"
"Wolverhampton City Council","http://opendatacommunities.org/id/metropolitan-district-council/wolverhampton","713286","Energas","4533084","89.11","Equipment - R & M","190390219","08/11/2017","Fleet Services","Fleet Management","R4003"
"Wolverhampton City Council","http://opendatacommunities.org/id/metropolitan-district-council/wolverhampton","713286","Energas","4533084","30.26","Equipment - R & M","190390219","08/11/2017","Fleet Services","Fleet Management","R4003"
"Wolverhampton City Council","http://opendatacommunities.org/id/metropolitan-district-council/wolverhampton","713286","Energas","4550944","17.26","Equipment - R & M","190391798","10/11/2017","Fleet Services","Fleet Management","R4003"
"Wolverhampton City Council","http://opendatacommunities.org/id/metropolitan-district-council/wolverhampton","713286","Energas","4550944","8.63","Equipment - R & M","190391798","10/11/2017","Fleet Services","Fleet Management","R4003"
"Wolverhampton City Council","http://opendatacommunities.org/id/metropolitan-district-council/wolverhampton","713286","Energas","4550944","17.26","Equipment - R & M","190391798","10/11/2017","Fleet Services","Fleet Management","R4003"
"Wolverhampton City Council","http://opendatacommunities.org/id/metropolitan-district-council/wolverhampton","713286","Energas","4550944","21.72","Equipment - R & M","190391798","10/11/2017","Fleet Services","Fleet Management","R4003"
"Wolverhampton City Council","http://opendatacommunities.org/id/metropolitan-district-council/wolverhampton","713362","Steve Wells Associates Ltd","1006","3,506.35","External Professional Fees","130193763","22/11/2017","-","Sports Investment Strategy","C6002"
"Wolverhampton City Council","http://opendatacommunities.org/id/metropolitan-district-council/wolverhampton","713478","STORMFLAME LTD","42612","2,254.35","Fixtures and Fittings - Purchases","130194417","08/11/2017","School Planning & Resources","Towers Outdoor Education Centre","R2500"
"Wolverhampton City Council","http://opendatacommunities.org/id/metropolitan-district-council/wolverhampton","713478","STORMFLAME LTD","2751","2,254.35","Fixtures and Fittings - Purchases","130193619","15/11/2017","School Planning & Resources","Towers Outdoor Education Centre","R2500"
"Wolverhampton City Council","http://opendatacommunities.org/id/metropolitan-district-council/wolverhampton","713498","Belle Vue Primary School","P15767620171103","600.00","Grant Payments to Individuals","190390248","08/11/2017","Looked After Children","LAC Education Team (LACE)","R6402"
"Wolverhampton City Council","http://opendatacommunities.org/id/metropolitan-district-council/wolverhampton","713498","Belle Vue Primary School","P15767620171103","600.00","Grant Payments to Individuals","190390248","08/11/2017","Looked After Children","LAC Education Team (LACE)","R6402"
"Wolverhampton City Council","http://opendatacommunities.org/id/metropolitan-district-council/wolverhampton","713506","Equita Limited","1008088","5.00","Bailiff Action","130193658","01/11/2017","Parking Services","Parking Enforcement","R9382"
"Wolverhampton City Council","http://opendatacommunities.org/id/metropolitan-district-council/wolverhampton","713506","Equita Limited","1007030 VAT ONLY","100.66","Bailiff Action","130193657","01/11/2017","Parking Services","Parking Enforcement","R9382"
"Wolverhampton City Council","http://opendatacommunities.org/id/metropolitan-district-council/wolverhampton","713506","Equita Limited","1011991","98.00","Bailiff Action","130194135","03/11/2017","Parking Services","Parking Enforcement","R9382"
"Wolverhampton City Council","http://opendatacommunities.org/id/metropolitan-district-council/wolverhampton","713506","Equita Limited","1013110","96.00","Bailiff Action","130194137","15/11/2017","Parking Services","Parking Enforcement","R9382"
"Wolverhampton City Council","http://opendatacommunities.org/id/metropolitan-district-council/wolverhampton","713564","Bloomfield College","P15767620171103","600.00","Grant Payments to Individuals","190390248","08/11/2017","Looked After Children","LAC Education Team (LACE)","R6402"
"Wolverhampton City Council","http://opendatacommunities.org/id/metropolitan-district-council/wolverhampton","713567","Yarrington Limited","14562","112.50","Marketing \ Non-staff advertising","130194527","29/11/2017","Strategic Director Place","City Marketing (Place)","R4317"
"Wolverhampton City Council","http://opendatacommunities.org/id/metropolitan-district-council/wolverhampton","713567","Yarrington Limited","14559","10,778.00","Conference Expenses","130194418","29/11/2017","Enterprise","City Conference Programme","R4611"
"Wolverhampton City Council","http://opendatacommunities.org/id/metropolitan-district-council/wolverhampton","713567","Yarrington Limited","14559","-10,778.00","Conference Expenses","130194418","29/11/2017","Enterprise","City Conference Programme","R4611"
"Wolverhampton City Council","http://opendatacommunities.org/id/metropolitan-district-council/wolverhampton","713567","Yarrington Limited","14559","10,778.00","Conference Expenses","130194418","29/11/2017","Enterprise","City Conference Programme","R4611"
"Wolverhampton City Council","http://opendatacommunities.org/id/metropolitan-district-council/wolverhampton","713574","Tremark Associates Limited","78784","135.70","Services - Professional Fees","130194236","17/11/2017","Legal Services","Centralised External Legal Costs","R4400"
"Wolverhampton City Council","http://opendatacommunities.org/id/metropolitan-district-council/wolverhampton","713574","Tremark Associates Limited","78400","150.00","Services - Professional Fees","130191840","01/11/2017","Legal Services","Centralised External Legal Costs","R4400"
"Wolverhampton City Council","http://opendatacommunities.org/id/metropolitan-district-council/wolverhampton","713574","Tremark Associates Limited","78401","158.00","Services - Professional Fees","130191841","01/11/2017","Legal Services","Centralised External Legal Costs","R4400"
"Wolverhampton City Council","http://opendatacommunities.org/id/metropolitan-district-council/wolverhampton","713574","Tremark Associates Limited","78949","125.00","Services - Professional Fees","130194750","24/11/2017","Legal Services","Centralised External Legal Costs","R4400"
"Wolverhampton City Council","http://opendatacommunities.org/id/metropolitan-district-council/wolverhampton","713574","Tremark Associates Limited","78950","125.00","Services - Professional Fees","130194751","24/11/2017","Legal Services","Centralised External Legal Costs","R4400"
"Wolverhampton City Council","http://opendatacommunities.org/id/metropolitan-district-council/wolverhampton","713584","Elms Bank Spec. Coll. 70110 (Bury MBC)","P15767620171103","600.00","Grant Payments to Individuals","190390248","08/11/2017","Looked After Children","LAC Education Team (LACE)","R6402"
"Wolverhampton City Council","http://opendatacommunities.org/id/metropolitan-district-council/wolverhampton","713637","St Mary�s Catholic Primary Academy","WCC07112017","4,452.37","Plant, Equipment, Machinery & Computer Hardware","130196645","24/11/2017","-","Primary Expansion Programme","C3000"
"Wolverhampton City Council","http://opendatacommunities.org/id/metropolitan-district-council/wolverhampton","713637","St Mary�s Catholic Primary Academy","WCC07112017","-4,452.37","Plant, Equipment, Machinery & Computer Hardware","130196645","24/11/2017","-","Primary Expansion Programme","C3000"
"Wolverhampton City Council","http://opendatacommunities.org/id/metropolitan-district-council/wolverhampton","713637","St Mary�s Catholic Primary Academy","WCC07112017","4,452.37","Plant, Equipment, Machinery & Computer Hardware","130196645","24/11/2017","-","Primary Expansion Programme","C3000"
"Wolverhampton City Council","http://opendatacommunities.org/id/metropolitan-district-council/wolverhampton","713637","St Mary�s Catholic Primary Academy","WCC040717","1,101.60","Plant, Equipment, Machinery & Computer Hardware","130195611","15/11/2017","-","Primary Expansion Programme","C3000"
"Wolverhampton City Council","http://opendatacommunities.org/id/metropolitan-district-council/wolverhampton","713637","St Mary�s Catholic Primary Academy","WCC06112017","21,569.20","Plant, Equipment, Machinery & Computer Hardware","130196644","24/11/2017","-","Primary Expansion Programme","C3000"
"Wolverhampton City Council","http://opendatacommunities.org/id/metropolitan-district-council/wolverhampton","713637","St Mary�s Catholic Primary Academy","WCC050717","13,527.97","Plant, Equipment, Machinery & Computer Hardware","130195612","17/11/2017","-","Primary Expansion Programme","C3000"
"Wolverhampton City Council","http://opendatacommunities.org/id/metropolitan-district-council/wolverhampton","713639","St Martins Multi Academy Trust","P15815820171109","600.00","Grant Payments to Individuals","190391805","10/11/2017","Looked After Children","LAC Education Team (LACE)","R6402"
"Wolverhampton City Council","http://opendatacommunities.org/id/metropolitan-district-council/wolverhampton","713639","St Martins Multi Academy Trust","P15815820171109","600.00","Grant Payments to Individuals","190391805","10/11/2017","Looked After Children","LAC Education Team (LACE)","R6402"
"Wolverhampton City Council","http://opendatacommunities.org/id/metropolitan-district-council/wolverhampton","713639","St Martins Multi Academy Trust","P15815820171109","600.00","Grant Payments to Individuals","190391805","10/11/2017","Looked After Children","LAC Education Team (LACE)","R6402"
"Wolverhampton City Council","http://opendatacommunities.org/id/metropolitan-district-council/wolverhampton","713643","Our Lady & St Chad�s Catholic Academy","P15767620171103","600.00","Grant Payments to Individuals","190390248","08/11/2017","Looked After Children","LAC Education Team (LACE)","R6402"
"Wolverhampton City Council","http://opendatacommunities.org/id/metropolitan-district-council/wolverhampton","713643","Our Lady & St Chad�s Catholic Academy","P15767620171103","600.00","Grant Payments to Individuals","190390248","08/11/2017","Looked After Children","LAC Education Team (LACE)","R6402"
"Wolverhampton City Council","http://opendatacommunities.org/id/metropolitan-district-council/wolverhampton","713643","Our Lady & St Chad�s Catholic Academy","P15767620171103","600.00","Grant Payments to Individuals","190390248","08/11/2017","Looked After Children","LAC Education Team (LACE)","R6402"
"Wolverhampton City Council","http://opendatacommunities.org/id/metropolitan-district-council/wolverhampton","713644","Holy Rosary Catholic Primary Academy","P15956120171127","600.00","Grant Payments to Individuals","190397974","29/11/2017","Looked After Children","LAC Education Team (LACE)","R6402"
"Wolverhampton City Council","http://opendatacommunities.org/id/metropolitan-district-council/wolverhampton","713664","WYG Management Services Ltd","844909","2,000.00","Services - Consultants","130194108","22/11/2017","City Development","Strategic Disposals","R4404"
"Wolverhampton City Council","http://opendatacommunities.org/id/metropolitan-district-council/wolverhampton","713737","Miss Poppy�s Cakes","465","189.75","Provisions (Resale)","130189952","17/11/2017","Visitor Economy","Bantock - Tea Rooms","R4102"
"Wolverhampton City Council","http://opendatacommunities.org/id/metropolitan-district-council/wolverhampton","713737","Miss Poppy�s Cakes","466","153.25","Provisions (Resale)","130189953","01/11/2017","Visitor Economy","Bantock - Tea Rooms","R4102"
"Wolverhampton City Council","http://opendatacommunities.org/id/metropolitan-district-council/wolverhampton","713760","Equip4Work","SN128847","2,840.00","Equipment - Purchase","130195792","17/11/2017","Adult Education","Service Wide","R4000"
"Wolverhampton City Council","http://opendatacommunities.org/id/metropolitan-district-council/wolverhampton","713870","Print Express","00932536","270.00","Stationery","130194109","10/11/2017","Safeguarding","Safeguarding Partnership Board","R4308"
"Wolverhampton City Council","http://opendatacommunities.org/id/metropolitan-district-council/wolverhampton","713873","Quartzelec Ltd","7127561","307.50","R&M - Departmental planned (external)","130193921","22/11/2017","Maintenance Programme","Centralised R&M","R2001"
"Wolverhampton City Council","http://opendatacommunities.org/id/metropolitan-district-council/wolverhampton","713882","Frontier Plastics Ltd","N55975","1,230.58","TPP - Public Health Contracts","130190559","08/11/2017","Contracts","Alcohol and Drug","R5060"
"Wolverhampton City Council","http://opendatacommunities.org/id/metropolitan-district-council/wolverhampton","713882","Frontier Plastics Ltd","N55975","-1,230.58","TPP - Public Health Contracts","130190559","08/11/2017","Contracts","Alcohol and Drug","R5060"
"Wolverhampton City Council","http://opendatacommunities.org/id/metropolitan-district-council/wolverhampton","713882","Frontier Plastics Ltd","N55975","1,230.58","TPP - Public Health Contracts","130190559","08/11/2017","Contracts","Alcohol and Drug","R5060"
"Wolverhampton City Council","http://opendatacommunities.org/id/metropolitan-district-council/wolverhampton","713886","King�s College Hospital","00251539 GUM M4 17/18","134.00","TPP - Public Health Contracts","190393270","15/11/2017","Contracts","Sexual Health","R5060"
"Wolverhampton City Council","http://opendatacommunities.org/id/metropolitan-district-council/wolverhampton","713886","King�s College Hospital","00252334 GUM M5 17/18","134.00","TPP - Public Health Contracts","190393271","15/11/2017","Contracts","Sexual Health","R5060"
"Wolverhampton City Council","http://opendatacommunities.org/id/metropolitan-district-council/wolverhampton","713926","Cefndy Healthcare","800614667","334.60","Equipment - Purchase","130192002","03/11/2017","Independent Living Service","Independent Living Service","R4000"
"Wolverhampton City Council","http://opendatacommunities.org/id/metropolitan-district-council/wolverhampton","713951","Northwood Park Primary Academy","P15815820171109","600.00","Grant Payments to Individuals","190391805","10/11/2017","Looked After Children","LAC Education Team (LACE)","R6402"
"Wolverhampton City Council","http://opendatacommunities.org/id/metropolitan-district-council/wolverhampton","713951","Northwood Park Primary Academy","P15815820171109","600.00","Grant Payments to Individuals","190391805","10/11/2017","Looked After Children","LAC Education Team (LACE)","R6402"
"Wolverhampton City Council","http://opendatacommunities.org/id/metropolitan-district-council/wolverhampton","713951","Northwood Park Primary Academy","P15815820171109","600.00","Grant Payments to Individuals","190391805","10/11/2017","Looked After Children","LAC Education Team (LACE)","R6402"
"Wolverhampton City Council","http://opendatacommunities.org/id/metropolitan-district-council/wolverhampton","713989","Service Point(Trading division of Paragon Group uk Ltd)","92298515","1,512.00","Printing","130194419","29/11/2017","ICTS","Document Centre - General","R4300"
"Wolverhampton City Council","http://opendatacommunities.org/id/metropolitan-district-council/wolverhampton","713989","Service Point(Trading division of Paragon Group uk Ltd)","92298516","376.60","Printing","130194420","29/11/2017","ICTS","Document Centre - General","R4300"
"Wolverhampton City Council","http://opendatacommunities.org/id/metropolitan-district-council/wolverhampton","713990","Kennedy Grinding Ltd","298638","13.00","Equipment - R & M","130194110","24/11/2017","ICTS","Document Centre - General","R4003"
"Wolverhampton City Council","http://opendatacommunities.org/id/metropolitan-district-council/wolverhampton","713991","Docu-finish Solutions Ltd","2841","485.00","Equipment - R & M","130196170","22/11/2017","ICTS","Document Centre - General","R4003"
"Wolverhampton City Council","http://opendatacommunities.org/id/metropolitan-district-council/wolverhampton","713994","Mrs Jaswinder Hothi","031","450.00","Accommodation Costs","130194111","24/11/2017","Child Protection","CIN/CP Social Work Unit - Area 5","R4900"
"Wolverhampton City Council","http://opendatacommunities.org/id/metropolitan-district-council/wolverhampton","713994","Mrs Jaswinder Hothi","030","450.00","Accommodation Costs","130191133","01/11/2017","Child Protection","CIN/CP Social Work Unit - Area 5","R4900"
"Wolverhampton City Council","http://opendatacommunities.org/id/metropolitan-district-council/wolverhampton","714048","Lisa Cawthorn","61","388.70","Services - Professional Fees","130193764","29/11/2017","Looked After Children","Panel Expenses Fostering & Adoption","R4400"
"Wolverhampton City Council","http://opendatacommunities.org/id/metropolitan-district-council/wolverhampton","714048","Lisa Cawthorn","61","-388.70","Services - Professional Fees","130193764","29/11/2017","Looked After Children","Panel Expenses Fostering & Adoption","R4400"
"Wolverhampton City Council","http://opendatacommunities.org/id/metropolitan-district-council/wolverhampton","714048","Lisa Cawthorn","61","388.70","Services - Professional Fees","130193764","29/11/2017","Looked After Children","Panel Expenses Fostering & Adoption","R4400"
"Wolverhampton City Council","http://opendatacommunities.org/id/metropolitan-district-council/wolverhampton","714153","David Nuttall (St Ives Chamber)","INVDNU9","690.00","Services - Professional Fees","130195614","22/11/2017","Human Resources","HR Advice","R4400"
"Wolverhampton City Council","http://opendatacommunities.org/id/metropolitan-district-council/wolverhampton","714153","David Nuttall (St Ives Chamber)","INVDNU6","500.00","Services - Professional Fees","130195613","22/11/2017","Human Resources","HR Advice","R4400"
"Wolverhampton City Council","http://opendatacommunities.org/id/metropolitan-district-council/wolverhampton","714162","Willowbrook Education","49116","816.00","Fixtures and Fittings - Purchases","130197185","29/11/2017","Schools","Lanesfield Primary School","R2500"
"Wolverhampton City Council","http://opendatacommunities.org/id/metropolitan-district-council/wolverhampton","714187","Hortons� Estate Limited","65212","1,500.00","Rent","130195416","22/11/2017","Skills","Connexions Contract","R2200"
"Wolverhampton City Council","http://opendatacommunities.org/id/metropolitan-district-council/wolverhampton","714205","Dolphin Media & Design Ltd","174L","19,928.65","Intangible Assets / Computer Software","130194752","29/11/2017","-","Corporate Asset Management","C4005"
"Wolverhampton City Council","http://opendatacommunities.org/id/metropolitan-district-council/wolverhampton","714205","Dolphin Media & Design Ltd","175L","5,521.43","Intangible Assets / Computer Software","130194753","29/11/2017","-","Corporate Asset Management","C4005"
"Wolverhampton City Council","http://opendatacommunities.org/id/metropolitan-district-council/wolverhampton","714227","Dr Elizabeth Ball","31","583.54","TPP - Public Health Contracts","130195056","29/11/2017","Contracts","Alcohol and Drug","R5060"
"Wolverhampton City Council","http://opendatacommunities.org/id/metropolitan-district-council/wolverhampton","714240","Engage Education Ltd","H-10171","8,000.00","Services - Consultants","130191242","03/11/2017","Headstart","Headstart - Learning Technologies Team","R4404"
"Wolverhampton City Council","http://opendatacommunities.org/id/metropolitan-district-council/wolverhampton","714240","Engage Education Ltd","CE-04171Q","7,950.00","Services - Professional Fees","130194290","08/11/2017","Headstart","Headstart Phase 3","R4400"
"Wolverhampton City Council","http://opendatacommunities.org/id/metropolitan-district-council/wolverhampton","714240","Engage Education Ltd","CE-04171Q","-7,950.00","Services - Professional Fees","130194290","08/11/2017","Headstart","Headstart Phase 3","R4400"
"Wolverhampton City Council","http://opendatacommunities.org/id/metropolitan-district-council/wolverhampton","714240","Engage Education Ltd","CE-04171Q","7,950.00","Services - Professional Fees","130194290","08/11/2017","Headstart","Headstart Phase 3","R4400"
"Wolverhampton City Council","http://opendatacommunities.org/id/metropolitan-district-council/wolverhampton","714240","Engage Education Ltd","CE-04171","9,750.00","Services - Professional Fees","130192825","15/11/2017","Headstart","Headstart Phase 3","R4400"
"Wolverhampton City Council","http://opendatacommunities.org/id/metropolitan-district-council/wolverhampton","714253","Regeneris Consulting Ltd","2017/4388","13,072.50","Services - Professional Fees","130185964","01/11/2017","Planning","Planning","R4400"
"Wolverhampton City Council","http://opendatacommunities.org/id/metropolitan-district-council/wolverhampton","714253","Regeneris Consulting Ltd","2017/4474","13,072.50","Services - Professional Fees","130191243","01/11/2017","Planning","Planning","R4400"
"Wolverhampton City Council","http://opendatacommunities.org/id/metropolitan-district-council/wolverhampton","714253","Regeneris Consulting Ltd","2017/4548","13,072.50","Services - Professional Fees","130194754","29/11/2017","Planning","Planning","R4400"
"Wolverhampton City Council","http://opendatacommunities.org/id/metropolitan-district-council/wolverhampton","714258","Cropper Grounds Maintenance Ltd","39283","308.33","Grounds Maintenance - Non Contract","130197190","29/11/2017","Schools","Lanesfield Primary School","R2076"
"Wolverhampton City Council","http://opendatacommunities.org/id/metropolitan-district-council/wolverhampton","714260","Liberty Support  / SevaSupport Ltd","223820171113","403.00","TPP - Home Care","190392645","15/11/2017","Learning Disabilities Care Purchasing","LD Care Purchasing (Spot Placements)","R5420"
"Wolverhampton City Council","http://opendatacommunities.org/id/metropolitan-district-council/wolverhampton","714260","Liberty Support  / SevaSupport Ltd","224720171113","4,066.32","TPP - Supported Living","190392653","15/11/2017","Learning Disabilities Care Purchasing","LD Care Purchasing (Spot Placements)","R5422"
"Wolverhampton City Council","http://opendatacommunities.org/id/metropolitan-district-council/wolverhampton","714260","Liberty Support  / SevaSupport Ltd","224320171113","585.00","TPP - Home Care","190392650","15/11/2017","Learning Disabilities Care Purchasing","LD Care Purchasing (Spot Placements)","R5420"
"Wolverhampton City Council","http://opendatacommunities.org/id/metropolitan-district-council/wolverhampton","714260","Liberty Support  / SevaSupport Ltd","224520171113","4,142.60","TPP - Supported Living","190392651","15/11/2017","Learning Disabilities Care Purchasing","LD Care Purchasing (Spot Placements)","R5422"
"Wolverhampton City Council","http://opendatacommunities.org/id/metropolitan-district-council/wolverhampton","714260","Liberty Support  / SevaSupport Ltd","224620171113","1,134.00","TPP - Supported Living","190392652","15/11/2017","Learning Disabilities Care Purchasing","LD Care Purchasing (Spot Placements)","R5422"
"Wolverhampton City Council","http://opendatacommunities.org/id/metropolitan-district-council/wolverhampton","714260","Liberty Support  / SevaSupport Ltd","224120171113","936.00","TPP - Home Care","190392648","15/11/2017","Mental Health Assesment & Care Management","MH Care Purchasing (Spot Placements)","R5420"
"Wolverhampton City Council","http://opendatacommunities.org/id/metropolitan-district-council/wolverhampton","714260","Liberty Support  / SevaSupport Ltd","224220171113","936.00","TPP - Home Care","190392649","15/11/2017","Mental Health Assesment & Care Management","MH Care Purchasing (Spot Placements)","R5420"
"Wolverhampton City Council","http://opendatacommunities.org/id/metropolitan-district-council/wolverhampton","714260","Liberty Support  / SevaSupport Ltd","223920171113","780.00","TPP - Home Care","190392646","15/11/2017","Learning Disabilities Care Purchasing","LD Care Purchasing (Spot Placements)","R5420"
"Wolverhampton City Council","http://opendatacommunities.org/id/metropolitan-district-council/wolverhampton","714260","Liberty Support  / SevaSupport Ltd","224020171113","403.00","TPP - Home Care","190392647","15/11/2017","Mental Health Assesment & Care Management","MH Care Purchasing (Spot Placements)","R5420"
"Wolverhampton City Council","http://opendatacommunities.org/id/metropolitan-district-council/wolverhampton","714260","Liberty Support  / SevaSupport Ltd","SS00223620171113","936.00","TPP - Home Care","190392654","15/11/2017","Mental Health Assesment & Care Management","MH Care Purchasing (Spot Placements)","R5420"
"Wolverhampton City Council","http://opendatacommunities.org/id/metropolitan-district-council/wolverhampton","714260","Liberty Support  / SevaSupport Ltd","223720171113","117.00","TPP - Home Care","190392644","15/11/2017","Learning Disabilities Care Purchasing","LD Care Purchasing (Spot Placements)","R5420"
"Wolverhampton City Council","http://opendatacommunities.org/id/metropolitan-district-council/wolverhampton","714276","Speller Metcalfe Malvern Limited","CIN7045","853,579.67","Construction and Conversion","130196450","24/11/2017","-","Future Spaces","C1100"
"Wolverhampton City Council","http://opendatacommunities.org/id/metropolitan-district-council/wolverhampton","714279","Tusker","SCR031007","15.79","Services - Professional Fees","130192361","08/11/2017","Human Resources","Salary Sacrifice Schemes","R4400"
"Wolverhampton City Council","http://opendatacommunities.org/id/metropolitan-district-council/wolverhampton","714279","Tusker","SCR031007","139.72","Services - Professional Fees","130192361","08/11/2017","Human Resources","Salary Sacrifice Schemes","R4400"
"Wolverhampton City Council","http://opendatacommunities.org/id/metropolitan-district-council/wolverhampton","714279","Tusker","SCR031007","-511.26","Services - Professional Fees","130192361","08/11/2017","Human Resources","Salary Sacrifice Schemes","R4400"
"Wolverhampton City Council","http://opendatacommunities.org/id/metropolitan-district-council/wolverhampton","714279","Tusker","SIN319511","457.22","Services - Professional Fees","130195057","29/11/2017","Human Resources","Salary Sacrifice Schemes","R4400"
"Wolverhampton City Council","http://opendatacommunities.org/id/metropolitan-district-council/wolverhampton","714279","Tusker","SIN319511","-457.22","Services - Professional Fees","130195057","29/11/2017","Human Resources","Salary Sacrifice Schemes","R4400"
"Wolverhampton City Council","http://opendatacommunities.org/id/metropolitan-district-council/wolverhampton","714279","Tusker","SIN319511","163.58","Services - Professional Fees","130195057","29/11/2017","Human Resources","Salary Sacrifice Schemes","R4400"
"Wolverhampton City Council","http://opendatacommunities.org/id/metropolitan-district-council/wolverhampton","714279","Tusker","SIN319511","196.29","Services - Professional Fees","130195057","29/11/2017","Human Resources","Salary Sacrifice Schemes","R4400"
"Wolverhampton City Council","http://opendatacommunities.org/id/metropolitan-district-council/wolverhampton","714279","Tusker","SIN319511","61.59","Services - Professional Fees","130195057","29/11/2017","Human Resources","Salary Sacrifice Schemes","R4400"
"Wolverhampton City Council","http://opendatacommunities.org/id/metropolitan-district-council/wolverhampton","714279","Tusker","SIN319511","68.48","Services - Professional Fees","130195057","29/11/2017","Human Resources","Salary Sacrifice Schemes","R4400"
"Wolverhampton City Council","http://opendatacommunities.org/id/metropolitan-district-council/wolverhampton","714279","Tusker","SIN304640","509.00","Services - Professional Fees","130185332","08/11/2017","Human Resources","Salary Sacrifice Schemes","R4400"
"Wolverhampton City Council","http://opendatacommunities.org/id/metropolitan-district-council/wolverhampton","714279","Tusker","SIN304640","-509.00","Services - Professional Fees","130185332","08/11/2017","Human Resources","Salary Sacrifice Schemes","R4400"
"Wolverhampton City Council","http://opendatacommunities.org/id/metropolitan-district-council/wolverhampton","714279","Tusker","SIN304640","509.00","Services - Professional Fees","130185332","08/11/2017","Human Resources","Salary Sacrifice Schemes","R4400"
"Wolverhampton City Council","http://opendatacommunities.org/id/metropolitan-district-council/wolverhampton","714279","Tusker","SIN315757","398.21","Services - Professional Fees","130193765","15/11/2017","Human Resources","Salary Sacrifice Schemes","R4400"
"Wolverhampton City Council","http://opendatacommunities.org/id/metropolitan-district-council/wolverhampton","714279","Tusker","SIN315757","-398.21","Services - Professional Fees","130193765","15/11/2017","Human Resources","Salary Sacrifice Schemes","R4400"
"Wolverhampton City Council","http://opendatacommunities.org/id/metropolitan-district-council/wolverhampton","714279","Tusker","SIN315757","247.27","Services - Professional Fees","130193765","15/11/2017","Human Resources","Salary Sacrifice Schemes","R4400"
"Wolverhampton City Council","http://opendatacommunities.org/id/metropolitan-district-council/wolverhampton","714279","Tusker","SIN315757","73.53","Services - Professional Fees","130193765","15/11/2017","Human Resources","Salary Sacrifice Schemes","R4400"
"Wolverhampton City Council","http://opendatacommunities.org/id/metropolitan-district-council/wolverhampton","714279","Tusker","SIN315757","77.41","Services - Professional Fees","130193765","15/11/2017","Human Resources","Salary Sacrifice Schemes","R4400"
"Wolverhampton City Council","http://opendatacommunities.org/id/metropolitan-district-council/wolverhampton","714309","Excel Tuition Centre","EWKHS10001","166.68","Services - Professional Fees","130195274","15/11/2017","Looked After Children","Pupil Premium","R4400"
"Wolverhampton City Council","http://opendatacommunities.org/id/metropolitan-district-council/wolverhampton","714309","Excel Tuition Centre","EWKHSI0002","83.34","Services - Professional Fees","130195275","15/11/2017","Looked After Children","Pupil Premium","R4400"
"Wolverhampton City Council","http://opendatacommunities.org/id/metropolitan-district-council/wolverhampton","714314","Midcounties - Wellington Rd Nursery","P15783320171103","90.00","Client Allowances","190390251","08/11/2017","Looked After Children","Looked After Team 2","R6301"
"Wolverhampton City Council","http://opendatacommunities.org/id/metropolitan-district-council/wolverhampton","714316","Little Oaks Day Nursery","P15815820171109","100.00","Grant Payments to Individuals","190391805","10/11/2017","Looked After Children","LAC Education Team (LACE)","R6402"
"Wolverhampton City Council","http://opendatacommunities.org/id/metropolitan-district-council/wolverhampton","715662","Impower Consulting Limited","37627","39,531.11","Services - Professional Fees","130195276","29/11/2017","Fleet Services","Passenger Transport - Education","R4400"
"Wolverhampton City Council","http://opendatacommunities.org/id/metropolitan-district-council/wolverhampton","715676","Insight Media Internet Limited","1003942","204.00","Computing - Repair and Maint","130194237","29/11/2017","Strategic Organisation Development","Global Budgets","R4533"
"Wolverhampton City Council","http://opendatacommunities.org/id/metropolitan-district-council/wolverhampton","715676","Insight Media Internet Limited","1003942","1,000.00","Computing - Repair and Maint","130194237","29/11/2017","Strategic Organisation Development","Global Budgets","R4533"
"Wolverhampton City Council","http://opendatacommunities.org/id/metropolitan-district-council/wolverhampton","715688","Sterling Filtration Limited","123749","149.45","Equipment - Purchase","190393155","15/11/2017","Fleet Services","Fleet Management","R4000"
"Wolverhampton City Council","http://opendatacommunities.org/id/metropolitan-district-council/wolverhampton","715688","Sterling Filtration Limited","124010","48.48","Equipment - Purchase","190397161","24/11/2017","Fleet Services","Fleet Management","R4000"
"Wolverhampton City Council","http://opendatacommunities.org/id/metropolitan-district-council/wolverhampton","715688","Sterling Filtration Limited","123802","9.83","Equipment - Purchase","190395075","22/11/2017","Fleet Services","Fleet Management","R4000"
"Wolverhampton City Council","http://opendatacommunities.org/id/metropolitan-district-council/wolverhampton","715715","Just One Recruitment and Training Ltd","P158306 10121720171120","3,956.40","TPP - Supported Living","190395305","22/11/2017","Physical Disabilities Care Purchasing","PD Care Purchasing (Spot Placements)","R5422"
"Wolverhampton City Council","http://opendatacommunities.org/id/metropolitan-district-council/wolverhampton","715778","Coopal Ltd","705","3,155.00","Equipment - R & M","130195059","29/11/2017","Leisure Services","Bert Williams Leisure Centre","R4003"
"Wolverhampton City Council","http://opendatacommunities.org/id/metropolitan-district-council/wolverhampton","715778","Coopal Ltd","702","790.00","Equipment - R & M","130194422","24/11/2017","Leisure Services","Central Baths","R4003"
"Wolverhampton City Council","http://opendatacommunities.org/id/metropolitan-district-council/wolverhampton","715778","Coopal Ltd","692","1,488.85","Equipment - R & M","130191680","01/11/2017","Leisure Services","Aldersley Leisure Village","R4003"
"Wolverhampton City Council","http://opendatacommunities.org/id/metropolitan-district-council/wolverhampton","715795","Brewood Middle School","P15767620171103","600.00","Grant Payments to Individuals","190390248","08/11/2017","Looked After Children","LAC Education Team (LACE)","R6402"
"Wolverhampton City Council","http://opendatacommunities.org/id/metropolitan-district-council/wolverhampton","715796","Fibbersley Park Academy","P15767620171103","600.00","Grant Payments to Individuals","190390248","08/11/2017","Looked After Children","LAC Education Team (LACE)","R6402"
"Wolverhampton City Council","http://opendatacommunities.org/id/metropolitan-district-council/wolverhampton","715796","Fibbersley Park Academy","P15767620171103","600.00","Grant Payments to Individuals","190390248","08/11/2017","Looked After Children","LAC Education Team (LACE)","R6402"
"Wolverhampton City Council","http://opendatacommunities.org/id/metropolitan-district-council/wolverhampton","715807","Etchiing Hill C of E Primary School","P15767620171103","600.00","Grant Payments to Individuals","190390248","08/11/2017","Looked After Children","LAC Education Team (LACE)","R6402"
"Wolverhampton City Council","http://opendatacommunities.org/id/metropolitan-district-council/wolverhampton","715807","Etchiing Hill C of E Primary School","P15767620171103","600.00","Grant Payments to Individuals","190390248","08/11/2017","Looked After Children","LAC Education Team (LACE)","R6402"
"Wolverhampton City Council","http://opendatacommunities.org/id/metropolitan-district-council/wolverhampton","715813","CRH Transport Training Limited","9793","5,585.00","Training Expenses","130194755","29/11/2017","Human Resources","Centralised Training","R1650"
"Wolverhampton City Council","http://opendatacommunities.org/id/metropolitan-district-council/wolverhampton","715821","EDF Energy","3469387","326.11","Electricity","190396331","22/11/2017","Corporate Asset Management","Central Utilities to Recharge","R2100"
"Wolverhampton City Council","http://opendatacommunities.org/id/metropolitan-district-council/wolverhampton","715905","Averta Employment Lawyers LLP","104584","1,000.00","Services - Professional Fees","130193923","17/11/2017","Visitor Economy","Visitor Economy - Development","R4400"
"Wolverhampton City Council","http://opendatacommunities.org/id/metropolitan-district-council/wolverhampton","715909","Family Action","21506","166.00","Services - Professional Fees","130193250","01/11/2017","Specialist Support","Head of Service Specialist Intensive Support Service","R4400"
"Wolverhampton City Council","http://opendatacommunities.org/id/metropolitan-district-council/wolverhampton","715909","Family Action","21506","-166.00","Services - Professional Fees","130193250","01/11/2017","Specialist Support","Head of Service Specialist Intensive Support Service","R4400"
"Wolverhampton City Council","http://opendatacommunities.org/id/metropolitan-district-council/wolverhampton","715909","Family Action","21506","166.00","Services - Professional Fees","130193250","01/11/2017","Specialist Support","Head of Service Specialist Intensive Support Service","R4400"
"Wolverhampton City Council","http://opendatacommunities.org/id/metropolitan-district-council/wolverhampton","715909","Family Action","21505","83.00","Services - Professional Fees","130193249","01/11/2017","Specialist Support","Head of Service Specialist Intensive Support Service","R4400"
"Wolverhampton City Council","http://opendatacommunities.org/id/metropolitan-district-council/wolverhampton","715909","Family Action","21505","-83.00","Services - Professional Fees","130193249","01/11/2017","Specialist Support","Head of Service Specialist Intensive Support Service","R4400"
"Wolverhampton City Council","http://opendatacommunities.org/id/metropolitan-district-council/wolverhampton","715909","Family Action","21505","83.00","Services - Professional Fees","130193249","01/11/2017","Specialist Support","Head of Service Specialist Intensive Support Service","R4400"
"Wolverhampton City Council","http://opendatacommunities.org/id/metropolitan-district-council/wolverhampton","715909","Family Action","21927","83.00","Services - Professional Fees","130193252","01/11/2017","Specialist Support","Therapeutic Support Team","R4400"
"Wolverhampton City Council","http://opendatacommunities.org/id/metropolitan-district-council/wolverhampton","715909","Family Action","21927","-83.00","Services - Professional Fees","130193252","01/11/2017","Specialist Support","Therapeutic Support Team","R4400"
"Wolverhampton City Council","http://opendatacommunities.org/id/metropolitan-district-council/wolverhampton","715909","Family Action","21927","83.00","Services - Professional Fees","130193252","01/11/2017","Specialist Support","Therapeutic Support Team","R4400"
"Wolverhampton City Council","http://opendatacommunities.org/id/metropolitan-district-council/wolverhampton","715909","Family Action","22767","249.00","Direct Work With Children","130196452","29/11/2017","Specialist Support","Therapeutic Support Team","R6310"
"Wolverhampton City Council","http://opendatacommunities.org/id/metropolitan-district-council/wolverhampton","715909","Family Action","22768","426.00","Direct Work With Children","130196453","29/11/2017","Specialist Support","Therapeutic Support Team","R6310"
"Wolverhampton City Council","http://opendatacommunities.org/id/metropolitan-district-council/wolverhampton","715909","Family Action","22769","213.00","Direct Work With Children","130196454","29/11/2017","Specialist Support","Therapeutic Support Team","R6310"
"Wolverhampton City Council","http://opendatacommunities.org/id/metropolitan-district-council/wolverhampton","715909","Family Action","21926","83.00","Services - Professional Fees","130193251","08/11/2017","Specialist Support","Therapeutic Support Team","R4400"
"Wolverhampton City Council","http://opendatacommunities.org/id/metropolitan-district-council/wolverhampton","715909","Family Action","21926","-83.00","Services - Professional Fees","130193251","08/11/2017","Specialist Support","Therapeutic Support Team","R4400"
"Wolverhampton City Council","http://opendatacommunities.org/id/metropolitan-district-council/wolverhampton","715909","Family Action","21926","83.00","Services - Professional Fees","130193251","08/11/2017","Specialist Support","Therapeutic Support Team","R4400"
"Wolverhampton City Council","http://opendatacommunities.org/id/metropolitan-district-council/wolverhampton","715923","Wattrus Group Limited","19254","9,617.46","Construction and Conversion","130195060","10/11/2017","-","Primary Expansion Programme","C1100"
"Wolverhampton City Council","http://opendatacommunities.org/id/metropolitan-district-council/wolverhampton","715951","Kate Tilley","KT W 10a 17 ( W Q 44 )","100.00","Services - Professional Fees","130193396","15/11/2017","Visitor Economy","Art Galleries - Schools Art SLA Service","R4400"
"Wolverhampton City Council","http://opendatacommunities.org/id/metropolitan-district-council/wolverhampton","715951","Kate Tilley","KT - W - 10 - 17 ( W - Q - 43 )","112.50","Services - Professional Fees","130193394","15/11/2017","Visitor Economy","Art Galleries - Schools Art SLA Service","R4400"
"Wolverhampton City Council","http://opendatacommunities.org/id/metropolitan-district-council/wolverhampton","715951","Kate Tilley","KT - W - 10b - 17 ( W - Q - 45 )","75.00","Services - Professional Fees","130193395","15/11/2017","Visitor Economy","Art Galleries - Schools Art SLA Service","R4400"
"Wolverhampton City Council","http://opendatacommunities.org/id/metropolitan-district-council/wolverhampton","715951","Kate Tilley","KT - W - 10C - 17 ( W - Q - 46 )","150.00","Services - Professional Fees","130194112","24/11/2017","Visitor Economy","Art Galleries - Schools Art SLA Service","R4400"
"Wolverhampton City Council","http://opendatacommunities.org/id/metropolitan-district-council/wolverhampton","715994","Able 2 Occupational Therapy Serv Ltd","17000","1,250.00","Agency Staff","130194756","29/11/2017","Independent Living Service","Independent Living Service","R1100"
"Wolverhampton City Council","http://opendatacommunities.org/id/metropolitan-district-council/wolverhampton","715994","Able 2 Occupational Therapy Serv Ltd","17000","-1,250.00","Agency Staff","130194756","29/11/2017","Independent Living Service","Independent Living Service","R1100"
"Wolverhampton City Council","http://opendatacommunities.org/id/metropolitan-district-council/wolverhampton","715994","Able 2 Occupational Therapy Serv Ltd","17000","1,250.00","Agency Staff","130194756","29/11/2017","Independent Living Service","Independent Living Service","R1100"
"Wolverhampton City Council","http://opendatacommunities.org/id/metropolitan-district-council/wolverhampton","716001","Sigma Surveying Services Limited","00001226/MAS","15,000.00","Services - Professional Fees","130194423","29/11/2017","Commercial Services","Corporate Procurement Unit","R4400"
"Wolverhampton City Council","http://opendatacommunities.org/id/metropolitan-district-council/wolverhampton","716010","Kingdom Security Limited","0000479556","22,860.00","Services - Professional Fees","130195985","29/11/2017","Public Protection","Environmental Crime","R4400"
"Wolverhampton City Council","http://opendatacommunities.org/id/metropolitan-district-council/wolverhampton","716010","Kingdom Security Limited","0000475422","25,500.00","Services - Professional Fees","130187971","01/11/2017","Public Protection","Environmental Crime","R4400"
"Wolverhampton City Council","http://opendatacommunities.org/id/metropolitan-district-council/wolverhampton","716083","J. Harper & Sons (Leominster) Ltd","IN023079","74,613.33","Construction and Conversion","130194757","10/11/2017","-","Primary Expansion Programme","C1100"
"Wolverhampton City Council","http://opendatacommunities.org/id/metropolitan-district-council/wolverhampton","716086","Mike Pardo","MastersonG206a (rewrite)","73.97","Services - Professional Fees","190389578","03/11/2017","Legal Services","Centralised External Legal Costs","R4400"
"Wolverhampton City Council","http://opendatacommunities.org/id/metropolitan-district-council/wolverhampton","716086","Mike Pardo","Dodd&BurgenG208a","87.94","Services - Professional Fees","190389579","03/11/2017","Legal Services","Centralised External Legal Costs","R4400"
"Wolverhampton City Council","http://opendatacommunities.org/id/metropolitan-district-council/wolverhampton","716106","Active Assistance","12692820171106","1,232.91","TPP - Home Care","190390404","08/11/2017","Physical Disabilities Care Purchasing","PD Care Purchasing (Spot Placements)","R5420"
"Wolverhampton City Council","http://opendatacommunities.org/id/metropolitan-district-council/wolverhampton","716106","Active Assistance","12692820171106","136.99","TPP - Home Care","190390404","08/11/2017","Physical Disabilities Care Purchasing","PD Care Purchasing (Spot Placements)","R5420"
"Wolverhampton City Council","http://opendatacommunities.org/id/metropolitan-district-council/wolverhampton","716106","Active Assistance","12667020171031","1,232.91","TPP - Home Care","190388732","01/11/2017","Physical Disabilities Care Purchasing","PD Care Purchasing (Spot Placements)","R5420"
"Wolverhampton City Council","http://opendatacommunities.org/id/metropolitan-district-council/wolverhampton","716106","Active Assistance","12667020171031","136.99","TPP - Home Care","190388732","01/11/2017","Physical Disabilities Care Purchasing","PD Care Purchasing (Spot Placements)","R5420"
"Wolverhampton City Council","http://opendatacommunities.org/id/metropolitan-district-council/wolverhampton","716106","Active Assistance","12744520171127","1,232.91","TPP - Home Care","190397928","29/11/2017","Physical Disabilities Care Purchasing","PD Care Purchasing (Spot Placements)","R5420"
"Wolverhampton City Council","http://opendatacommunities.org/id/metropolitan-district-council/wolverhampton","716106","Active Assistance","12744520171127","136.99","TPP - Home Care","190397928","29/11/2017","Physical Disabilities Care Purchasing","PD Care Purchasing (Spot Placements)","R5420"
"Wolverhampton City Council","http://opendatacommunities.org/id/metropolitan-district-council/wolverhampton","716106","Active Assistance","12714520171113","1,232.91","TPP - Home Care","190392655","15/11/2017","Physical Disabilities Care Purchasing","PD Care Purchasing (Spot Placements)","R5420"
"Wolverhampton City Council","http://opendatacommunities.org/id/metropolitan-district-council/wolverhampton","716106","Active Assistance","12714520171113","136.99","TPP - Home Care","190392655","15/11/2017","Physical Disabilities Care Purchasing","PD Care Purchasing (Spot Placements)","R5420"
"Wolverhampton City Council","http://opendatacommunities.org/id/metropolitan-district-council/wolverhampton","716106","Active Assistance","12729620171120","1,232.91","TPP - Home Care","190394907","22/11/2017","Physical Disabilities Care Purchasing","PD Care Purchasing (Spot Placements)","R5420"
"Wolverhampton City Council","http://opendatacommunities.org/id/metropolitan-district-council/wolverhampton","716106","Active Assistance","12729620171120","136.99","TPP - Home Care","190394907","22/11/2017","Physical Disabilities Care Purchasing","PD Care Purchasing (Spot Placements)","R5420"
"Wolverhampton City Council","http://opendatacommunities.org/id/metropolitan-district-council/wolverhampton","716121","Blue Cable Ltd","BC/958/14","454.00","Plant, Equipment, Machinery & Computer Hardware","130191244","01/11/2017","-","ICT Disaster Recovery","C3000"
"Wolverhampton City Council","http://opendatacommunities.org/id/metropolitan-district-council/wolverhampton","716125","Autostart Midlands Limited","079841","180.00","Equipment - Purchase","190388899","01/11/2017","Fleet Services","Fleet Management","R4000"
"Wolverhampton City Council","http://opendatacommunities.org/id/metropolitan-district-council/wolverhampton","716125","Autostart Midlands Limited","079738","180.00","Equipment - Purchase","190388898","01/11/2017","Fleet Services","Fleet Management","R4000"
"Wolverhampton City Council","http://opendatacommunities.org/id/metropolitan-district-council/wolverhampton","716133","Mr Andrew Watt","662/517/601/620/557","1,335.60","Services - Professional Fees","190391522","10/11/2017","Legal Services","Centralised External Legal Costs","R4400"
"Wolverhampton City Council","http://opendatacommunities.org/id/metropolitan-district-council/wolverhampton","716177","Bolinda Uk Ltd","24723","91.96","Books","130193627","22/11/2017","Strategic Organisation Development","Global Budgets","R4309"
"Wolverhampton City Council","http://opendatacommunities.org/id/metropolitan-district-council/wolverhampton","716177","Bolinda Uk Ltd","24715","520.67","Books","130193620","22/11/2017","Strategic Organisation Development","Global Budgets","R4309"
"Wolverhampton City Council","http://opendatacommunities.org/id/metropolitan-district-council/wolverhampton","716177","Bolinda Uk Ltd","24716","496.67","Books","130193621","22/11/2017","Strategic Organisation Development","Global Budgets","R4309"
"Wolverhampton City Council","http://opendatacommunities.org/id/metropolitan-district-council/wolverhampton","716177","Bolinda Uk Ltd","24717","511.87","Books","130193622","22/11/2017","Strategic Organisation Development","Global Budgets","R4309"
"Wolverhampton City Council","http://opendatacommunities.org/id/metropolitan-district-council/wolverhampton","716177","Bolinda Uk Ltd","24718","537.47","Books","130193623","22/11/2017","Strategic Organisation Development","Global Budgets","R4309"
"Wolverhampton City Council","http://opendatacommunities.org/id/metropolitan-district-council/wolverhampton","716177","Bolinda Uk Ltd","24720","87.96","Books","130193624","22/11/2017","Strategic Organisation Development","Global Budgets","R4309"
"Wolverhampton City Council","http://opendatacommunities.org/id/metropolitan-district-council/wolverhampton","716177","Bolinda Uk Ltd","24721","79.96","Books","130193625","22/11/2017","Strategic Organisation Development","Global Budgets","R4309"
"Wolverhampton City Council","http://opendatacommunities.org/id/metropolitan-district-council/wolverhampton","716177","Bolinda Uk Ltd","24722","80.76","Books","130193626","22/11/2017","Strategic Organisation Development","Global Budgets","R4309"
"Wolverhampton City Council","http://opendatacommunities.org/id/metropolitan-district-council/wolverhampton","716202","Miss Sarah Fahy","INVSF17","2,800.00","Services - Professional Fees","130195061","24/11/2017","Legal Services","Centralised External Legal Costs","R4400"
"Wolverhampton City Council","http://opendatacommunities.org/id/metropolitan-district-council/wolverhampton","716207","ASA West Midland Region","SIN198924","378.50","Materials for resale","130194758","10/11/2017","Leisure Services","Bert Williams Leisure Centre","R4008"
"Wolverhampton City Council","http://opendatacommunities.org/id/metropolitan-district-council/wolverhampton","716224","Homers Travel","252","1,740.44","Client Transport","130194238","03/11/2017","School Planning & Resources","Special - Transport","R3042"
"Wolverhampton City Council","http://opendatacommunities.org/id/metropolitan-district-council/wolverhampton","716224","Homers Travel","253","1,440.00","Client Transport","130194239","03/11/2017","School Planning & Resources","Special - Transport","R3042"
"Wolverhampton City Council","http://opendatacommunities.org/id/metropolitan-district-council/wolverhampton","716227","Ascentis Awarding Body","40198","295.00","Training Expenses","130152752","08/11/2017","Adult Education","Staff Development","R1650"
"Wolverhampton City Council","http://opendatacommunities.org/id/metropolitan-district-council/wolverhampton","716227","Ascentis Awarding Body","46589","50.00","Exam Expenses (Non-Employee)","130184791","10/11/2017","Adult Education","Discretionary Fund","R4630"
"Wolverhampton City Council","http://opendatacommunities.org/id/metropolitan-district-council/wolverhampton","716246","One 4 You Services Ltd","6572","1,054.00","Client Transport","130194240","22/11/2017","School Planning & Resources","Special - Transport","R3042"
"Wolverhampton City Council","http://opendatacommunities.org/id/metropolitan-district-council/wolverhampton","716246","One 4 You Services Ltd","6573","2,273.24","Client Transport","130194241","22/11/2017","School Planning & Resources","Special - Transport","R3042"
"Wolverhampton City Council","http://opendatacommunities.org/id/metropolitan-district-council/wolverhampton","716246","One 4 You Services Ltd","6575","1,190.00","Client Transport","130194242","22/11/2017","School Planning & Resources","Special - Transport","R3042"
"Wolverhampton City Council","http://opendatacommunities.org/id/metropolitan-district-council/wolverhampton","716319","Patrick J J Rollinson","PJR/47","650.00","R&M - Departmental planned (external)","130193397","17/11/2017","Bereavement Services","Cemeteries","R2001"
"Wolverhampton City Council","http://opendatacommunities.org/id/metropolitan-district-council/wolverhampton","716362","LHi Group Ltd/Lawrence Harvey","113285","11,970.00","Agency Staff","130194759","29/11/2017","Strategic Finance","Agresso System Support","R1100"
"Wolverhampton City Council","http://opendatacommunities.org/id/metropolitan-district-council/wolverhampton","716368","J P Landscapes & Construction Ltd","2427","9,956.41","Construction and Conversion","130195796","17/11/2017","-","Primary Expansion Programme","C1100"
"Wolverhampton City Council","http://opendatacommunities.org/id/metropolitan-district-council/wolverhampton","716369","Armstrong Bell Ltd","0023872","204.78","Comms - Telephone Call charges","130193006","08/11/2017","Skills","Connexions Contract","R4505"
"Wolverhampton City Council","http://opendatacommunities.org/id/metropolitan-district-council/wolverhampton","716384","Hill Shorter Limited","21098","6,016.00","Services - Professional Fees","130193766","15/11/2017","Visitor Economy","Pop Gallery Space","R4400"
"Wolverhampton City Council","http://opendatacommunities.org/id/metropolitan-district-council/wolverhampton","716392","Virgin Media Ltd","039003802/001/1017","6.96","Comms - Telephone Rental","130192362","01/11/2017","Catering","Primary Schools Catering","R4504"
"Wolverhampton City Council","http://opendatacommunities.org/id/metropolitan-district-council/wolverhampton","716392","Virgin Media Ltd","804157-191","2.68","Comms - Telephone Rental","130194459","08/11/2017","ICTS","Strategic ICTS (ICT Service Budget)","R4504"
"Wolverhampton City Council","http://opendatacommunities.org/id/metropolitan-district-council/wolverhampton","716392","Virgin Media Ltd","804157-175","0.12","Comms - Telephone Rental","130120431","15/11/2017","ICTS","Strategic ICTS (ICT Service Budget)","R4504"
"Wolverhampton City Council","http://opendatacommunities.org/id/metropolitan-district-council/wolverhampton","716392","Virgin Media Ltd","804157-174","2.29","Comms - Telephone Rental","130116325","15/11/2017","ICTS","Strategic ICTS (ICT Service Budget)","R4504"
"Wolverhampton City Council","http://opendatacommunities.org/id/metropolitan-district-council/wolverhampton","716392","Virgin Media Ltd","039360602/0416","45.71","Comms - Telephone Rental","130117834","15/11/2017","ICTS","Strategic ICTS (ICT Service Budget)","R4504"
"Wolverhampton City Council","http://opendatacommunities.org/id/metropolitan-district-council/wolverhampton","716392","Virgin Media Ltd","804156 - 174","22.60","Comms - Telephone Rental","130116324","15/11/2017","ICTS","Strategic ICTS (ICT Service Budget)","R4504"
"Wolverhampton City Council","http://opendatacommunities.org/id/metropolitan-district-council/wolverhampton","716392","Virgin Media Ltd","804156 - 175","16.21","Comms - Telephone Rental","130119811","15/11/2017","ICTS","Strategic ICTS (ICT Service Budget)","R4504"
"Wolverhampton City Council","http://opendatacommunities.org/id/metropolitan-district-council/wolverhampton","716392","Virgin Media Ltd","039003802/001/1117","5.97","Comms - Telephone Rental","130196322","29/11/2017","Catering","Primary Schools Catering","R4504"
"Wolverhampton City Council","http://opendatacommunities.org/id/metropolitan-district-council/wolverhampton","716429","Sustainability West Midlands","404","10,000.00","Services - Professional Fees","130193767","24/11/2017","Planning","Planning","R4400"
"Wolverhampton City Council","http://opendatacommunities.org/id/metropolitan-district-council/wolverhampton","716571","E-Recruiter","860","3,225.00","Agency Staff","130191136","01/11/2017","Strategic Finance","Agresso System Support","R1100"
"Wolverhampton City Council","http://opendatacommunities.org/id/metropolitan-district-council/wolverhampton","716571","E-Recruiter","929","3,225.00","Agency Staff","130194424","29/11/2017","Strategic Finance","Agresso System Support","R1100"
"Wolverhampton City Council","http://opendatacommunities.org/id/metropolitan-district-council/wolverhampton","716571","E-Recruiter","537","2,875.00","Agency Staff","130194760","15/11/2017","Strategic Finance","Agresso System Support","R1100"
"Wolverhampton City Council","http://opendatacommunities.org/id/metropolitan-district-council/wolverhampton","716571","E-Recruiter","879","3,225.00","Agency Staff","130192005","08/11/2017","Strategic Finance","Agresso System Support","R1100"
"Wolverhampton City Council","http://opendatacommunities.org/id/metropolitan-district-council/wolverhampton","716571","E-Recruiter","909","2,580.00","Agency Staff","130193628","22/11/2017","Strategic Finance","Agresso System Support","R1100"
"Wolverhampton City Council","http://opendatacommunities.org/id/metropolitan-district-council/wolverhampton","716571","E-Recruiter","895","2,580.00","Agency Staff","130193007","15/11/2017","Strategic Finance","Agresso System Support","R1100"
"Wolverhampton City Council","http://opendatacommunities.org/id/metropolitan-district-council/wolverhampton","716584","Atkins Limited","17025268","5,000.00","Construction and Conversion","130193253","08/11/2017","-","Tap Works site","C1100"
"Wolverhampton City Council","http://opendatacommunities.org/id/metropolitan-district-council/wolverhampton","716584","Atkins Limited","17028612","133,055.00","Construction and Conversion","130194243","29/11/2017","-","Future Spaces","C1100"
"Wolverhampton City Council","http://opendatacommunities.org/id/metropolitan-district-council/wolverhampton","716584","Atkins Limited","17026880","7,000.00","Construction and Conversion","130196173","22/11/2017","-","Tap Works site","C1100"
"Wolverhampton City Council","http://opendatacommunities.org/id/metropolitan-district-council/wolverhampton","716584","Atkins Limited","17026878","31,958.00","Services - Professional Fees","130196172","22/11/2017","Commercial Services","Corporate Procurement Unit","R4400"
"Wolverhampton City Council","http://opendatacommunities.org/id/metropolitan-district-council/wolverhampton","716588","Magna large Print Books","I102722","302.20","Books","130194425","29/11/2017","Strategic Organisation Development","Global Budgets","R4309"
"Wolverhampton City Council","http://opendatacommunities.org/id/metropolitan-district-council/wolverhampton","716589","Elston Hall Multi-Academy Trust","P15891720171117","600.00","Grant Payments to Individuals","190394321","22/11/2017","Looked After Children","LAC Education Team (LACE)","R6402"
"Wolverhampton City Council","http://opendatacommunities.org/id/metropolitan-district-council/wolverhampton","716589","Elston Hall Multi-Academy Trust","P15815820171109","300.00","Grant Payments to Individuals","190391805","10/11/2017","Looked After Children","LAC Education Team (LACE)","R6402"
"Wolverhampton City Council","http://opendatacommunities.org/id/metropolitan-district-council/wolverhampton","716589","Elston Hall Multi-Academy Trust","P15815820171109","600.00","Grant Payments to Individuals","190391805","10/11/2017","Looked After Children","LAC Education Team (LACE)","R6402"
"Wolverhampton City Council","http://opendatacommunities.org/id/metropolitan-district-council/wolverhampton","716589","Elston Hall Multi-Academy Trust","P15815820171109","600.00","Grant Payments to Individuals","190391805","10/11/2017","Looked After Children","LAC Education Team (LACE)","R6402"
"Wolverhampton City Council","http://opendatacommunities.org/id/metropolitan-district-council/wolverhampton","716589","Elston Hall Multi-Academy Trust","P15815820171109","600.00","Grant Payments to Individuals","190391805","10/11/2017","Looked After Children","LAC Education Team (LACE)","R6402"
"Wolverhampton City Council","http://opendatacommunities.org/id/metropolitan-district-council/wolverhampton","716589","Elston Hall Multi-Academy Trust","P15815820171109","600.00","Grant Payments to Individuals","190391805","10/11/2017","Looked After Children","LAC Education Team (LACE)","R6402"
"Wolverhampton City Council","http://opendatacommunities.org/id/metropolitan-district-council/wolverhampton","716589","Elston Hall Multi-Academy Trust","P15815820171109","600.00","Grant Payments to Individuals","190391805","10/11/2017","Looked After Children","LAC Education Team (LACE)","R6402"
"Wolverhampton City Council","http://opendatacommunities.org/id/metropolitan-district-council/wolverhampton","716589","Elston Hall Multi-Academy Trust","P15815820171109","600.00","Grant Payments to Individuals","190391805","10/11/2017","Looked After Children","LAC Education Team (LACE)","R6402"
"Wolverhampton City Council","http://opendatacommunities.org/id/metropolitan-district-council/wolverhampton","716589","Elston Hall Multi-Academy Trust","P15815820171109","600.00","Grant Payments to Individuals","190391805","10/11/2017","Looked After Children","LAC Education Team (LACE)","R6402"
"Wolverhampton City Council","http://opendatacommunities.org/id/metropolitan-district-council/wolverhampton","716589","Elston Hall Multi-Academy Trust","P15815820171109","600.00","Grant Payments to Individuals","190391805","10/11/2017","Looked After Children","LAC Education Team (LACE)","R6402"
"Wolverhampton City Council","http://opendatacommunities.org/id/metropolitan-district-council/wolverhampton","716589","Elston Hall Multi-Academy Trust","P15815820171109","600.00","Grant Payments to Individuals","190391805","10/11/2017","Looked After Children","LAC Education Team (LACE)","R6402"
"Wolverhampton City Council","http://opendatacommunities.org/id/metropolitan-district-council/wolverhampton","716594","Burke Bros Recovery","G25552","70.00","Services - Professional Fees","190395883","22/11/2017","Fleet Services","Fleet Management","R4400"
"Wolverhampton City Council","http://opendatacommunities.org/id/metropolitan-district-council/wolverhampton","716594","Burke Bros Recovery","G25587","70.00","Services - Professional Fees","190395884","22/11/2017","Fleet Services","Fleet Management","R4400"
"Wolverhampton City Council","http://opendatacommunities.org/id/metropolitan-district-council/wolverhampton","716594","Burke Bros Recovery","G25255","170.00","Services - Professional Fees","190393207","15/11/2017","Fleet Services","Fleet Management","R4400"
"Wolverhampton City Council","http://opendatacommunities.org/id/metropolitan-district-council/wolverhampton","716630","Tiger Communications Plc","20722","2,245.09","Computing - Maint Agreements","130194426","17/11/2017","ICTS","Strategic ICTS (ICT Service Budget)","R4534"
"Wolverhampton City Council","http://opendatacommunities.org/id/metropolitan-district-council/wolverhampton","716673","PAC-UK","16858","1,642.18","Subscriptions","130196175","22/11/2017","Looked After Children","Adoption and Residence Team & Allowances","R4701"
"Wolverhampton City Council","http://opendatacommunities.org/id/metropolitan-district-council/wolverhampton","716697","Npower Leeds","79773612990-30-10-17","19.71","Electricity","190392888","15/11/2017","Corporate Asset Management","Central Utilities to Recharge","R2100"
"Wolverhampton City Council","http://opendatacommunities.org/id/metropolitan-district-council/wolverhampton","716705","QualitySolicitors Talbots","53170","120.00","Services - Professional Fees","130193255","08/11/2017","Child Protection","CIN/CP Social Work Unit - Area 4","R4400"
"Wolverhampton City Council","http://opendatacommunities.org/id/metropolitan-district-council/wolverhampton","716717","Pre-Paid Financial Services Ltd","07723-Wolverhampton-0817","4,271.50","Services - Supplies and Services to service users","130187645","22/11/2017","Welfare Rights & Financial Assessment","Direct Payments Client Admin","R4408"
"Wolverhampton City Council","http://opendatacommunities.org/id/metropolitan-district-council/wolverhampton","716717","Pre-Paid Financial Services Ltd","07962-Wolverhampton-0917","4,014.22","Services - Supplies and Services to service users","130191682","10/11/2017","Welfare Rights & Financial Assessment","Direct Payments Client Admin","R4408"
"Wolverhampton City Council","http://opendatacommunities.org/id/metropolitan-district-council/wolverhampton","716717","Pre-Paid Financial Services Ltd","08273-Wolverhampton-1017","3,023.08","Services - Supplies and Services to service users","130195062","29/11/2017","Welfare Rights & Financial Assessment","Direct Payments Client Admin","R4408"
"Wolverhampton City Council","http://opendatacommunities.org/id/metropolitan-district-council/wolverhampton","716753","Barr Beacon School","P15767620171103","600.00","Grant Payments to Individuals","190390248","08/11/2017","Looked After Children","LAC Education Team (LACE)","R6402"
"Wolverhampton City Council","http://opendatacommunities.org/id/metropolitan-district-council/wolverhampton","716756","City of Birmingham School","P15767620171103","600.00","Grant Payments to Individuals","190390248","08/11/2017","Looked After Children","LAC Education Team (LACE)","R6402"
"Wolverhampton City Council","http://opendatacommunities.org/id/metropolitan-district-council/wolverhampton","716767","KINGSTON - Northern House Academy","NHAT_0369","4,193.25","TPP - Alternative Provision of Education","130195615","17/11/2017","Specialist Support","Alternative Provision","R5037"
"Wolverhampton City Council","http://opendatacommunities.org/id/metropolitan-district-council/wolverhampton","716767","KINGSTON - Northern House Academy","NHAT_0291","1,113.15","Client Transport","130196997","29/11/2017","Looked After Children","Adoption and Residence Team & Allowances","R3042"
"Wolverhampton City Council","http://opendatacommunities.org/id/metropolitan-district-council/wolverhampton","716767","KINGSTON - Northern House Academy","NHAT_0384","3,700.78","TPP - Alternative Provision of Education","130196849","24/11/2017","Specialist Support","Alternative Provision","R5037"
"Wolverhampton City Council","http://opendatacommunities.org/id/metropolitan-district-council/wolverhampton","716776","NHS Supply Chain","1018151754","55.50","TPP - Public Health Contracts","130195418","29/11/2017","Contracts","Healthy Start to Life","R5060"
"Wolverhampton City Council","http://opendatacommunities.org/id/metropolitan-district-council/wolverhampton","716776","NHS Supply Chain","1018147396","1,131.75","TPP - Public Health Contracts","130194113","29/11/2017","Contracts","Healthy Start to Life","R5060"
"Wolverhampton City Council","http://opendatacommunities.org/id/metropolitan-district-council/wolverhampton","716776","NHS Supply Chain","1018141466","18.50","TPP - Public Health Contracts","130193924","17/11/2017","Contracts","Healthy Start to Life","R5060"
"Wolverhampton City Council","http://opendatacommunities.org/id/metropolitan-district-council/wolverhampton","716804","McManus Flooring","5728","2,995.00","R&M - Departmental planned (internal)","130196850","29/11/2017","Corporate Asset Management","Strategic Asset Management Team","R2000"
"Wolverhampton City Council","http://opendatacommunities.org/id/metropolitan-district-council/wolverhampton","716804","McManus Flooring","5752","3,841.35","Construction and Conversion","130195420","15/11/2017","-","Primary Expansion Programme","C1100"
"Wolverhampton City Council","http://opendatacommunities.org/id/metropolitan-district-council/wolverhampton","716804","McManus Flooring","5749","9,495.00","R&M - Departmental planned (internal)","130195419","15/11/2017","Corporate Asset Management","Future Space Decant Area","R2000"
"Wolverhampton City Council","http://opendatacommunities.org/id/metropolitan-district-council/wolverhampton","716806","Peak Activity Services Ltd","2704","10,620.00","TPP - Alternative Provision of Education","130195616","15/11/2017","Standards and Vulnerable Pupils","SEN Education OOC","R5037"
"Wolverhampton City Council","http://opendatacommunities.org/id/metropolitan-district-council/wolverhampton","716806","Peak Activity Services Ltd","2740","1,870.00","TPP - Alternative Provision of Education","130195278","29/11/2017","Specialist Support","Alternative Provision","R5037"
"Wolverhampton City Council","http://opendatacommunities.org/id/metropolitan-district-council/wolverhampton","716809","SF Group","251136","563.51","Agency Staff","130191137","01/11/2017","The Hub","Payroll/HR","R1100"
"Wolverhampton City Council","http://opendatacommunities.org/id/metropolitan-district-council/wolverhampton","716809","SF Group","251154","605.54","Agency Staff","130191138","01/11/2017","The Hub","Payroll/HR","R1100"
"Wolverhampton City Council","http://opendatacommunities.org/id/metropolitan-district-council/wolverhampton","716811","Insight Direct (UK) Limited","3285638","371.40","Intangible Assets / Computer Software","130196998","29/11/2017","-","ICT Desktop Refresh","C4005"
"Wolverhampton City Council","http://opendatacommunities.org/id/metropolitan-district-council/wolverhampton","716811","Insight Direct (UK) Limited","3285638","15.00","Intangible Assets / Computer Software","130196998","29/11/2017","-","ICT Desktop Refresh","C4005"
"Wolverhampton City Council","http://opendatacommunities.org/id/metropolitan-district-council/wolverhampton","716815","Humanware Europe Limited","IEU0012141","2,385.00","Equipment - Purchase","130194896","29/11/2017","Standards and Vulnerable Pupils","SEN Sensory Inclusion","R4000"
"Wolverhampton City Council","http://opendatacommunities.org/id/metropolitan-district-council/wolverhampton","716815","Humanware Europe Limited","IEU0012141","20.00","Equipment - Purchase","130194896","29/11/2017","Standards and Vulnerable Pupils","SEN Sensory Inclusion","R4000"
"Wolverhampton City Council","http://opendatacommunities.org/id/metropolitan-district-council/wolverhampton","716821","The Cape Primary School","P15767620171103","600.00","Grant Payments to Individuals","190390248","08/11/2017","Looked After Children","LAC Education Team (LACE)","R6402"
"Wolverhampton City Council","http://opendatacommunities.org/id/metropolitan-district-council/wolverhampton","716822","Connell Brothers Limited","217/105","5,802.33","Construction and Conversion","130196324","22/11/2017","-","South Side","C1100"
"Wolverhampton City Council","http://opendatacommunities.org/id/metropolitan-district-council/wolverhampton","716822","Connell Brothers Limited","217/115","29,572.60","Construction and Conversion","130196325","22/11/2017","-","Heath Town","C1100"
"Wolverhampton City Council","http://opendatacommunities.org/id/metropolitan-district-council/wolverhampton","716823","George Dixon Academy","P15767620171103","600.00","Grant Payments to Individuals","190390248","08/11/2017","Looked After Children","LAC Education Team (LACE)","R6402"
"Wolverhampton City Council","http://opendatacommunities.org/id/metropolitan-district-council/wolverhampton","716826","St Winefride�s R.C. Primary School","P15767620171103","600.00","Grant Payments to Individuals","190390248","08/11/2017","Looked After Children","LAC Education Team (LACE)","R6402"
"Wolverhampton City Council","http://opendatacommunities.org/id/metropolitan-district-council/wolverhampton","716878","East Cheshire NHS Trust","17492457a","138.97","TPP - Public Health Contracts","190366754","01/11/2017","Contracts","Sexual Health","R5060"
"Wolverhampton City Council","http://opendatacommunities.org/id/metropolitan-district-council/wolverhampton","716914","Omari Project (ACCI)","ACCI/5239/02","2,083.33","TPP - Social Care Support Services","130191139","22/11/2017","Early Intervention","Transformation Challenge Award","R5501"
"Wolverhampton City Council","http://opendatacommunities.org/id/metropolitan-district-council/wolverhampton","716914","Omari Project (ACCI)","ACCI/5259/24","2,083.33","TPP - Social Care Support Services","130194761","29/11/2017","Early Intervention","Transformation Challenge Award","R5501"
"Wolverhampton City Council","http://opendatacommunities.org/id/metropolitan-district-council/wolverhampton","716914","Omari Project (ACCI)","5258/0820171107","260.00","TPP - Home Care","190390886","08/11/2017","Mental Health Assesment & Care Management","MH Care Purchasing (Spot Placements)","R5420"
"Wolverhampton City Council","http://opendatacommunities.org/id/metropolitan-district-council/wolverhampton","716914","Omari Project (ACCI)","5258/0820171107","260.00","TPP - Home Care","190390886","08/11/2017","Mental Health Assesment & Care Management","MH Care Purchasing (Spot Placements)","R5420"
"Wolverhampton City Council","http://opendatacommunities.org/id/metropolitan-district-council/wolverhampton","716914","Omari Project (ACCI)","5258/0820171107","260.00","TPP - Home Care","190390886","08/11/2017","Mental Health Assesment & Care Management","MH Care Purchasing (Spot Placements)","R5420"
"Wolverhampton City Council","http://opendatacommunities.org/id/metropolitan-district-council/wolverhampton","716914","Omari Project (ACCI)","5258/0820171107","260.00","TPP - Home Care","190390886","08/11/2017","Mental Health Assesment & Care Management","MH Care Purchasing (Spot Placements)","R5420"
"Wolverhampton City Council","http://opendatacommunities.org/id/metropolitan-district-council/wolverhampton","716914","Omari Project (ACCI)","5258/0820171107","260.00","TPP - Home Care","190390886","08/11/2017","Mental Health Assesment & Care Management","MH Care Purchasing (Spot Placements)","R5420"
"Wolverhampton City Council","http://opendatacommunities.org/id/metropolitan-district-council/wolverhampton","716914","Omari Project (ACCI)","5258/0820171107","260.00","TPP - Home Care","190390886","08/11/2017","Mental Health Assesment & Care Management","MH Care Purchasing (Spot Placements)","R5420"
"Wolverhampton City Council","http://opendatacommunities.org/id/metropolitan-district-council/wolverhampton","716914","Omari Project (ACCI)","5251/0820171107","416.00","TPP - Home Care","190390880","08/11/2017","Mental Health Assesment & Care Management","MH Care Purchasing (Spot Placements)","R5420"
"Wolverhampton City Council","http://opendatacommunities.org/id/metropolitan-district-council/wolverhampton","716914","Omari Project (ACCI)","5253/0820171107","208.00","TPP - Home Care","190390882","08/11/2017","Mental Health Assesment & Care Management","MH Care Purchasing (Spot Placements)","R5420"
"Wolverhampton City Council","http://opendatacommunities.org/id/metropolitan-district-council/wolverhampton","716914","Omari Project (ACCI)","5254/0820171107","260.00","TPP - Home Care","190390883","08/11/2017","Mental Health Assesment & Care Management","MH Care Purchasing (Spot Placements)","R5420"
"Wolverhampton City Council","http://opendatacommunities.org/id/metropolitan-district-council/wolverhampton","716914","Omari Project (ACCI)","5254/0820171107","260.00","TPP - Home Care","190390883","08/11/2017","Mental Health Assesment & Care Management","MH Care Purchasing (Spot Placements)","R5420"
"Wolverhampton City Council","http://opendatacommunities.org/id/metropolitan-district-council/wolverhampton","716914","Omari Project (ACCI)","5252/0820171107","312.00","TPP - Home Care","190390881","08/11/2017","Mental Health Assesment & Care Management","MH Care Purchasing (Spot Placements)","R5420"
"Wolverhampton City Council","http://opendatacommunities.org/id/metropolitan-district-council/wolverhampton","716914","Omari Project (ACCI)","5255/0820171107","364.00","TPP - Home Care","190390884","08/11/2017","Mental Health Assesment & Care Management","MH Care Purchasing (Spot Placements)","R5420"
"Wolverhampton City Council","http://opendatacommunities.org/id/metropolitan-district-council/wolverhampton","716914","Omari Project (ACCI)","5257/0820171107","234.00","TPP - Home Care","190390885","08/11/2017","Mental Health Assesment & Care Management","MH Care Purchasing (Spot Placements)","R5420"
"Wolverhampton City Council","http://opendatacommunities.org/id/metropolitan-district-council/wolverhampton","716914","Omari Project (ACCI)","ACCI/5244/24","-2,083.33","TPP - Social Care Support Services","130191843","08/11/2017","Early Intervention","Transformation Challenge Award","R5501"
"Wolverhampton City Council","http://opendatacommunities.org/id/metropolitan-district-council/wolverhampton","716916","Belvidere School","P15767620171103","600.00","Grant Payments to Individuals","190390248","08/11/2017","Looked After Children","LAC Education Team (LACE)","R6402"
"Wolverhampton City Council","http://opendatacommunities.org/id/metropolitan-district-council/wolverhampton","716924","Cheslyn Hay Primary School","P15767620171103","600.00","Grant Payments to Individuals","190390248","08/11/2017","Looked After Children","LAC Education Team (LACE)","R6402"
"Wolverhampton City Council","http://opendatacommunities.org/id/metropolitan-district-council/wolverhampton","716953","Make It Seen Media Ltd","MISM1933","145.00","Services - Professional Fees","130192364","08/11/2017","Safeguarding","Safeguarding Board - Childrens","R4400"
"Wolverhampton City Council","http://opendatacommunities.org/id/metropolitan-district-council/wolverhampton","716953","Make It Seen Media Ltd","MISM1933","-145.00","Services - Professional Fees","130192364","08/11/2017","Safeguarding","Safeguarding Board - Childrens","R4400"
"Wolverhampton City Council","http://opendatacommunities.org/id/metropolitan-district-council/wolverhampton","716953","Make It Seen Media Ltd","MISM1933","145.00","Services - Professional Fees","130192364","08/11/2017","Safeguarding","Safeguarding Board - Childrens","R4400"
"Wolverhampton City Council","http://opendatacommunities.org/id/metropolitan-district-council/wolverhampton","716985","Potton Kare Services Ltd","P15789320171106","76.00","TPP - Children�s Supervised Contact","190390650","08/11/2017","Looked After Children","Looked After Team 2","R5611"
"Wolverhampton City Council","http://opendatacommunities.org/id/metropolitan-district-council/wolverhampton","717004","Highfields Academy School","P15815820171109","600.00","Grant Payments to Individuals","190391805","10/11/2017","Looked After Children","LAC Education Team (LACE)","R6402"
"Wolverhampton City Council","http://opendatacommunities.org/id/metropolitan-district-council/wolverhampton","717004","Highfields Academy School","P15815820171109","600.00","Grant Payments to Individuals","190391805","10/11/2017","Looked After Children","LAC Education Team (LACE)","R6402"
"Wolverhampton City Council","http://opendatacommunities.org/id/metropolitan-district-council/wolverhampton","717004","Highfields Academy School","P15815820171109","600.00","Grant Payments to Individuals","190391805","10/11/2017","Looked After Children","LAC Education Team (LACE)","R6402"
"Wolverhampton City Council","http://opendatacommunities.org/id/metropolitan-district-council/wolverhampton","717004","Highfields Academy School","P15815820171109","600.00","Grant Payments to Individuals","190391805","10/11/2017","Looked After Children","LAC Education Team (LACE)","R6402"
"Wolverhampton City Council","http://opendatacommunities.org/id/metropolitan-district-council/wolverhampton","717004","Highfields Academy School","P15815820171109","600.00","Grant Payments to Individuals","190391805","10/11/2017","Looked After Children","LAC Education Team (LACE)","R6402"
"Wolverhampton City Council","http://opendatacommunities.org/id/metropolitan-district-council/wolverhampton","717004","Highfields Academy School","P15815820171109","600.00","Grant Payments to Individuals","190391805","10/11/2017","Looked After Children","LAC Education Team (LACE)","R6402"
"Wolverhampton City Council","http://opendatacommunities.org/id/metropolitan-district-council/wolverhampton","717004","Highfields Academy School","P15815820171109","600.00","Grant Payments to Individuals","190391805","10/11/2017","Looked After Children","LAC Education Team (LACE)","R6402"
"Wolverhampton City Council","http://opendatacommunities.org/id/metropolitan-district-council/wolverhampton","717004","Highfields Academy School","P15815820171109","600.00","Grant Payments to Individuals","190391805","10/11/2017","Looked After Children","LAC Education Team (LACE)","R6402"
"Wolverhampton City Council","http://opendatacommunities.org/id/metropolitan-district-council/wolverhampton","717004","Highfields Academy School","P15815820171109","600.00","Grant Payments to Individuals","190391805","10/11/2017","Looked After Children","LAC Education Team (LACE)","R6402"
"Wolverhampton City Council","http://opendatacommunities.org/id/metropolitan-district-council/wolverhampton","717004","Highfields Academy School","P15815820171109","600.00","Grant Payments to Individuals","190391805","10/11/2017","Looked After Children","LAC Education Team (LACE)","R6402"
"Wolverhampton City Council","http://opendatacommunities.org/id/metropolitan-district-council/wolverhampton","717004","Highfields Academy School","P15815820171109","600.00","Grant Payments to Individuals","190391805","10/11/2017","Looked After Children","LAC Education Team (LACE)","R6402"
"Wolverhampton City Council","http://opendatacommunities.org/id/metropolitan-district-council/wolverhampton","717045","Exactrak","SLS/50350370","495.00","Equipment - R & M","130193768","22/11/2017","Highways Maintenance","Winter Maintenance","R4003"
"Wolverhampton City Council","http://opendatacommunities.org/id/metropolitan-district-council/wolverhampton","717072","Pick Everard","49456","1,062.50","External Professional Fees","130195279","24/11/2017","-","GF - Disposals Programme (Non-Strategic)","C6002"
"Wolverhampton City Council","http://opendatacommunities.org/id/metropolitan-district-council/wolverhampton","717072","Pick Everard","49456","1,062.50","External Professional Fees","130195279","24/11/2017","-","GF - Disposals Programme (Non-Strategic)","C6002"
"Wolverhampton City Council","http://opendatacommunities.org/id/metropolitan-district-council/wolverhampton","717072","Pick Everard","49456","1,062.50","External Professional Fees","130195279","24/11/2017","-","GF - Disposals Programme (Non-Strategic)","C6002"
"Wolverhampton City Council","http://opendatacommunities.org/id/metropolitan-district-council/wolverhampton","717072","Pick Everard","49456","1,062.50","External Professional Fees","130195279","24/11/2017","-","GF - Disposals Programme (Non-Strategic)","C6002"
"Wolverhampton City Council","http://opendatacommunities.org/id/metropolitan-district-council/wolverhampton","717072","Pick Everard","49456","-2,125.00","External Professional Fees","130195279","24/11/2017","-","GF - Disposals Programme (Non-Strategic)","C6002"
"Wolverhampton City Council","http://opendatacommunities.org/id/metropolitan-district-council/wolverhampton","717072","Pick Everard","50186","2,678.50","External Professional Fees","130195988","29/11/2017","-","Primary Expansion Programme","C6002"
"Wolverhampton City Council","http://opendatacommunities.org/id/metropolitan-district-council/wolverhampton","717072","Pick Everard","50187","1,908.50","External Professional Fees","130195989","29/11/2017","-","Primary Expansion Programme","C6002"
"Wolverhampton City Council","http://opendatacommunities.org/id/metropolitan-district-council/wolverhampton","717125","New Chapters Fostercare","P159000 10121720171117","2,759.32","TPP - Placement Foster Care Agency","190396019","22/11/2017","Looked After Children","Out of City Placements","R5602"
"Wolverhampton City Council","http://opendatacommunities.org/id/metropolitan-district-council/wolverhampton","717125","New Chapters Fostercare","P159000 10121720171117","2,759.32","TPP - Placement Foster Care Agency","190396019","22/11/2017","Looked After Children","Out of City Placements","R5602"
"Wolverhampton City Council","http://opendatacommunities.org/id/metropolitan-district-council/wolverhampton","717164","Adoption Focus","FSAF 17 577","28,667.00","TPP - Payments to voluntary groups","130194244","08/11/2017","Looked After Children","Adoption and Residence Team & Allowances","R5200"
"Wolverhampton City Council","http://opendatacommunities.org/id/metropolitan-district-council/wolverhampton","717189","Bromford Housing Group Limited","P158249 10121720171120","4,537.96","TPP - Residential Care - Long Term","190395309","22/11/2017","Learning Disabilities Care Purchasing","LD Care Purchasing (Spot Placements)","R5400"
"Wolverhampton City Council","http://opendatacommunities.org/id/metropolitan-district-council/wolverhampton","717189","Bromford Housing Group Limited","P158249 10121720171120","4,537.96","TPP - Residential Care - Long Term","190395309","22/11/2017","Learning Disabilities Care Purchasing","LD Care Purchasing (Spot Placements)","R5400"
"Wolverhampton City Council","http://opendatacommunities.org/id/metropolitan-district-council/wolverhampton","717189","Bromford Housing Group Limited","P158249 10121720171120","5,192.00","TPP - Residential Care - Long Term","190395309","22/11/2017","Learning Disabilities Care Purchasing","LD Care Purchasing (Spot Placements)","R5400"
"Wolverhampton City Council","http://opendatacommunities.org/id/metropolitan-district-council/wolverhampton","717189","Bromford Housing Group Limited","P158249 10121720171120","4,536.00","TPP - Residential Care - Long Term","190395309","22/11/2017","Learning Disabilities Care Purchasing","LD Care Purchasing (Spot Placements)","R5400"
"Wolverhampton City Council","http://opendatacommunities.org/id/metropolitan-district-council/wolverhampton","717189","Bromford Housing Group Limited","P158249 10121720171120","4,537.96","TPP - Residential Care - Long Term","190395309","22/11/2017","Learning Disabilities Care Purchasing","LD Care Purchasing (Spot Placements)","R5400"
"Wolverhampton City Council","http://opendatacommunities.org/id/metropolitan-district-council/wolverhampton","717189","Bromford Housing Group Limited","P158249 10121720171120","4,537.96","TPP - Residential Care - Long Term","190395309","22/11/2017","Learning Disabilities Care Purchasing","LD Care Purchasing (Spot Placements)","R5400"
"Wolverhampton City Council","http://opendatacommunities.org/id/metropolitan-district-council/wolverhampton","717189","Bromford Housing Group Limited","P158249 10121720171120","4,537.96","TPP - Residential Care - Long Term","190395309","22/11/2017","Learning Disabilities Care Purchasing","LD Care Purchasing (Spot Placements)","R5400"
"Wolverhampton City Council","http://opendatacommunities.org/id/metropolitan-district-council/wolverhampton","717189","Bromford Housing Group Limited","P158249 10121720171120","4,537.96","TPP - Residential Care - Long Term","190395309","22/11/2017","Learning Disabilities Care Purchasing","LD Care Purchasing (Spot Placements)","R5400"
"Wolverhampton City Council","http://opendatacommunities.org/id/metropolitan-district-council/wolverhampton","717191","Movecorp Limited","99255","500.00","Storage","130191428","01/11/2017","Early Intervention","EIP Locality 6 � Dovecotes","R4910"
"Wolverhampton City Council","http://opendatacommunities.org/id/metropolitan-district-council/wolverhampton","717191","Movecorp Limited","99937","340.00","Storage","130194114","29/11/2017","Housing Revenue Account","Duty Office","R4910"
"Wolverhampton City Council","http://opendatacommunities.org/id/metropolitan-district-council/wolverhampton","717191","Movecorp Limited","99222","50.00","Equipment - R & M","130191245","01/11/2017","Independent Living Service","Independent Living Service","R4003"
"Wolverhampton City Council","http://opendatacommunities.org/id/metropolitan-district-council/wolverhampton","717191","Movecorp Limited","99560","6,860.55","Storage","130192506","10/11/2017","Corporate Asset Management","Future Space Decant Area","R4910"
"Wolverhampton City Council","http://opendatacommunities.org/id/metropolitan-district-council/wolverhampton","717191","Movecorp Limited","100043","600.00","Storage","130194427","29/11/2017","Corporate Asset Management","Future Space Decant Area","R4910"
"Wolverhampton City Council","http://opendatacommunities.org/id/metropolitan-district-council/wolverhampton","717191","Movecorp Limited","99951","45.00","Storage","130194245","29/11/2017","Headstart","Headstart Phase 3","R4910"
"Wolverhampton City Council","http://opendatacommunities.org/id/metropolitan-district-council/wolverhampton","717191","Movecorp Limited","99225","240.00","Storage","130191246","01/11/2017","Housing Revenue Account","Duty Office","R4910"
"Wolverhampton City Council","http://opendatacommunities.org/id/metropolitan-district-council/wolverhampton","717191","Movecorp Limited","99799","826.00","Storage","130193769","22/11/2017","Headstart","Headstart Phase 3","R4910"
"Wolverhampton City Council","http://opendatacommunities.org/id/metropolitan-district-council/wolverhampton","717191","Movecorp Limited","99593","567.00","Storage","130192828","15/11/2017","Headstart","Headstart Phase 3","R4910"
"Wolverhampton City Council","http://opendatacommunities.org/id/metropolitan-district-council/wolverhampton","717191","Movecorp Limited","98964","16,397.71","Storage","130195063","15/11/2017","Corporate Asset Management","Future Space Decant Area","R4910"
"Wolverhampton City Council","http://opendatacommunities.org/id/metropolitan-district-council/wolverhampton","717234","NEW PARK - Northern House Academy","P15815820171109","600.00","Grant Payments to Individuals","190391805","10/11/2017","Looked After Children","LAC Education Team (LACE)","R6402"
"Wolverhampton City Council","http://opendatacommunities.org/id/metropolitan-district-council/wolverhampton","717234","NEW PARK - Northern House Academy","P15815820171109","600.00","Grant Payments to Individuals","190391805","10/11/2017","Looked After Children","LAC Education Team (LACE)","R6402"
"Wolverhampton City Council","http://opendatacommunities.org/id/metropolitan-district-council/wolverhampton","717234","NEW PARK - Northern House Academy","P15815820171109","600.00","Grant Payments to Individuals","190391805","10/11/2017","Looked After Children","LAC Education Team (LACE)","R6402"
"Wolverhampton City Council","http://opendatacommunities.org/id/metropolitan-district-council/wolverhampton","717234","NEW PARK - Northern House Academy","P15815820171109","600.00","Grant Payments to Individuals","190391805","10/11/2017","Looked After Children","LAC Education Team (LACE)","R6402"
"Wolverhampton City Council","http://opendatacommunities.org/id/metropolitan-district-council/wolverhampton","717234","NEW PARK - Northern House Academy","P15815820171109","600.00","Grant Payments to Individuals","190391805","10/11/2017","Looked After Children","LAC Education Team (LACE)","R6402"
"Wolverhampton City Council","http://opendatacommunities.org/id/metropolitan-district-council/wolverhampton","717234","NEW PARK - Northern House Academy","P15815820171109","600.00","Grant Payments to Individuals","190391805","10/11/2017","Looked After Children","LAC Education Team (LACE)","R6402"
"Wolverhampton City Council","http://opendatacommunities.org/id/metropolitan-district-council/wolverhampton","717234","NEW PARK - Northern House Academy","P15767620171103","600.00","Grant Payments to Individuals","190390248","08/11/2017","Looked After Children","LAC Education Team (LACE)","R6402"
"Wolverhampton City Council","http://opendatacommunities.org/id/metropolitan-district-council/wolverhampton","717269","IAB","10018","1,050.00","Exam Expenses (Non-Employee)","130195280","24/11/2017","Adult Education","24+ Advanced Learning Loan","R4630"
"Wolverhampton City Council","http://opendatacommunities.org/id/metropolitan-district-council/wolverhampton","717269","IAB","10029","585.00","Exam Expenses (Non-Employee)","130195281","24/11/2017","Adult Education","24+ Advanced Learning Loan","R4630"
"Wolverhampton City Council","http://opendatacommunities.org/id/metropolitan-district-council/wolverhampton","717336","P W Media & Publishing Ltd","35281","550.00","Marketing \ Non-staff advertising","130193925","22/11/2017","Visitor Economy","Marketing of Exhibitions","R4317"
"Wolverhampton City Council","http://opendatacommunities.org/id/metropolitan-district-council/wolverhampton","717397","The Telford Priory School","P15767620171103","600.00","Grant Payments to Individuals","190390248","08/11/2017","Looked After Children","LAC Education Team (LACE)","R6402"
"Wolverhampton City Council","http://opendatacommunities.org/id/metropolitan-district-council/wolverhampton","717399","Elm Park Primary School","P15767620171103","600.00","Grant Payments to Individuals","190390248","08/11/2017","Looked After Children","LAC Education Team (LACE)","R6402"
"Wolverhampton City Council","http://opendatacommunities.org/id/metropolitan-district-council/wolverhampton","717405","Manor Multi Academy Trust- Teaching Sch A/C","P15815820171109","600.00","Grant Payments to Individuals","190391805","10/11/2017","Looked After Children","LAC Education Team (LACE)","R6402"
"Wolverhampton City Council","http://opendatacommunities.org/id/metropolitan-district-council/wolverhampton","717405","Manor Multi Academy Trust- Teaching Sch A/C","P15815820171109","600.00","Grant Payments to Individuals","190391805","10/11/2017","Looked After Children","LAC Education Team (LACE)","R6402"
"Wolverhampton City Council","http://opendatacommunities.org/id/metropolitan-district-council/wolverhampton","717405","Manor Multi Academy Trust- Teaching Sch A/C","P15815820171109","600.00","Grant Payments to Individuals","190391805","10/11/2017","Looked After Children","LAC Education Team (LACE)","R6402"
"Wolverhampton City Council","http://opendatacommunities.org/id/metropolitan-district-council/wolverhampton","717406","Cooksongold","BI1807357","283.78","Equipment - Purchase","130194428","22/11/2017","Adult Education","Creative Studies Delivery Area","R4000"
"Wolverhampton City Council","http://opendatacommunities.org/id/metropolitan-district-council/wolverhampton","717406","Cooksongold","BI1807357","-283.78","Equipment - Purchase","130194428","22/11/2017","Adult Education","Creative Studies Delivery Area","R4000"
"Wolverhampton City Council","http://opendatacommunities.org/id/metropolitan-district-council/wolverhampton","717406","Cooksongold","BI1807357","283.78","Equipment - Purchase","130194428","22/11/2017","Adult Education","Creative Studies Delivery Area","R4000"
"Wolverhampton City Council","http://opendatacommunities.org/id/metropolitan-district-council/wolverhampton","717406","Cooksongold","BI1807357","8.96","Equipment - Purchase","130194428","22/11/2017","Adult Education","Creative Studies Delivery Area","R4000"
"Wolverhampton City Council","http://opendatacommunities.org/id/metropolitan-district-council/wolverhampton","717421","The Child Psychology Service","1039","443.50","Direct Work With Children","130194115","24/11/2017","Looked After Children","Adoption Support Fund","R6310"
"Wolverhampton City Council","http://opendatacommunities.org/id/metropolitan-district-council/wolverhampton","717435","Leeds City Council","6504349432 GUM July 17/18","134.00","TPP - Public Health Contracts","190390706","08/11/2017","Contracts","Sexual Health","R5060"
"Wolverhampton City Council","http://opendatacommunities.org/id/metropolitan-district-council/wolverhampton","717453","SHB Hire Ltd","10868477","489.68","Hire of Vehicles","190392498","15/11/2017","Fleet Services","Fleet Management","R3200"
"Wolverhampton City Council","http://opendatacommunities.org/id/metropolitan-district-council/wolverhampton","717453","SHB Hire Ltd","10880333","484.00","Hire of Vehicles","190392499","15/11/2017","Fleet Services","Fleet Management","R3200"
"Wolverhampton City Council","http://opendatacommunities.org/id/metropolitan-district-council/wolverhampton","717453","SHB Hire Ltd","10880334","484.00","Hire of Vehicles","190392500","15/11/2017","Fleet Services","Fleet Management","R3200"
"Wolverhampton City Council","http://opendatacommunities.org/id/metropolitan-district-council/wolverhampton","717453","SHB Hire Ltd","10880335","484.00","Hire of Vehicles","190392501","15/11/2017","Fleet Services","Fleet Management","R3200"
"Wolverhampton City Council","http://opendatacommunities.org/id/metropolitan-district-council/wolverhampton","717453","SHB Hire Ltd","162652","-27.68","Hire of Vehicles","190392511","15/11/2017","Fleet Services","Fleet Management","R3200"
"Wolverhampton City Council","http://opendatacommunities.org/id/metropolitan-district-council/wolverhampton","717464","Dudley MBC/Alder Coppice Primary School","P15767620171103","600.00","Grant Payments to Individuals","190390248","08/11/2017","Looked After Children","LAC Education Team (LACE)","R6402"
"Wolverhampton City Council","http://opendatacommunities.org/id/metropolitan-district-council/wolverhampton","717464","Dudley MBC/Alder Coppice Primary School","P15815820171109","300.00","Grant Payments to Individuals","190391805","10/11/2017","Looked After Children","LAC Education Team (LACE)","R6402"
"Wolverhampton City Council","http://opendatacommunities.org/id/metropolitan-district-council/wolverhampton","717466","Stagecoach Wolverhampton","249. bacs rej","495.00","TPP - Alternative Provision of Education","130196871","24/11/2017","Schools","Rakegate Primary School","R5037"
"Wolverhampton City Council","http://opendatacommunities.org/id/metropolitan-district-council/wolverhampton","717466","Stagecoach Wolverhampton","298 bacs rej","125.00","Grant Payments","130196872","24/11/2017","Schools","Bilston Church of England Primary School","R4700"
"Wolverhampton City Council","http://opendatacommunities.org/id/metropolitan-district-council/wolverhampton","717524","T Shinton Engineering Ltd","31785","188.00","Equipment - Purchase","190395101","22/11/2017","Fleet Services","Fleet Management","R4000"
"Wolverhampton City Council","http://opendatacommunities.org/id/metropolitan-district-council/wolverhampton","717537","Alan Whitfield","002/2017/AW","3,000.00","Training Expenses","130196648","24/11/2017","Public Protection","Food Hygiene Courses","R1650"
"Wolverhampton City Council","http://opendatacommunities.org/id/metropolitan-district-council/wolverhampton","717558","Chris Martin","220","67.50","Services - Fees and Charges","130195990","29/11/2017","Visitor Economy","The Little Civic","R4401"
"Wolverhampton City Council","http://opendatacommunities.org/id/metropolitan-district-council/wolverhampton","717558","Chris Martin","220","-67.50","Services - Fees and Charges","130195990","29/11/2017","Visitor Economy","The Little Civic","R4401"
"Wolverhampton City Council","http://opendatacommunities.org/id/metropolitan-district-council/wolverhampton","717558","Chris Martin","220","260.00","Services - Fees and Charges","130195990","29/11/2017","Visitor Economy","Civic & Wulfrun In-House Promotions","R4401"
"Wolverhampton City Council","http://opendatacommunities.org/id/metropolitan-district-council/wolverhampton","717558","Chris Martin","220","260.00","Services - Fees and Charges","130195990","29/11/2017","Visitor Economy","Civic & Wulfrun In-House Promotions","R4401"
"Wolverhampton City Council","http://opendatacommunities.org/id/metropolitan-district-council/wolverhampton","717558","Chris Martin","220","67.50","Services - Fees and Charges","130195990","29/11/2017","Visitor Economy","The Little Civic","R4401"
"Wolverhampton City Council","http://opendatacommunities.org/id/metropolitan-district-council/wolverhampton","717558","Chris Martin","220","-260.00","Services - Fees and Charges","130195990","29/11/2017","Visitor Economy","Civic & Wulfrun In-House Promotions","R4401"
"Wolverhampton City Council","http://opendatacommunities.org/id/metropolitan-district-council/wolverhampton","717559","Dr C Lesshafft","FOS4007","55.00","Services - Professional Fees","190392963","15/11/2017","Looked After Children","Fostering Team & Allowances","R4400"
"Wolverhampton City Council","http://opendatacommunities.org/id/metropolitan-district-council/wolverhampton","717570","Basemap Ltd","1568892","1,825.00","Computing - Purchase of Software","130191683","01/11/2017","Transportation","Travelwise","R4531"
"Wolverhampton City Council","http://opendatacommunities.org/id/metropolitan-district-council/wolverhampton","717581","AndersElite Ltd","1386042","800.00","Agency Staff","130192654","08/11/2017","Capital Programme","Head of Projects and Works","R1100"
"Wolverhampton City Council","http://opendatacommunities.org/id/metropolitan-district-council/wolverhampton","717590","Natural History Musuem","005151","505.00","Services - Professional Fees","130191844","08/11/2017","Visitor Economy","Wildlife Photogragher of the year - NPO ACE WAG","R4400"
"Wolverhampton City Council","http://opendatacommunities.org/id/metropolitan-district-council/wolverhampton","717591","Engaging Communities Staffordshire CIC","272","16,190.75","TPP - Social Care Support Services","130186279","03/11/2017","Head of Commissioning","Local Reform and Community Voices Grant","R5501"
"Wolverhampton City Council","http://opendatacommunities.org/id/metropolitan-district-council/wolverhampton","717591","Engaging Communities Staffordshire CIC","271","4,321.09","TPP - Social Care Support Services","130186278","03/11/2017","Head of Commissioning","Local Reform and Community Voices Grant","R5501"
"Wolverhampton City Council","http://opendatacommunities.org/id/metropolitan-district-council/wolverhampton","717591","Engaging Communities Staffordshire CIC","289","4,321.08","TPP - Social Care Support Services","130194117","22/11/2017","Head of Commissioning","Local Reform and Community Voices Grant","R5501"
"Wolverhampton City Council","http://opendatacommunities.org/id/metropolitan-district-council/wolverhampton","717591","Engaging Communities Staffordshire CIC","290","16,190.75","TPP - Social Care Support Services","130194118","22/11/2017","Head of Commissioning","Local Reform and Community Voices Grant","R5501"
"Wolverhampton City Council","http://opendatacommunities.org/id/metropolitan-district-council/wolverhampton","717602","Cherry Trees School","P15767620171103","600.00","Grant Payments to Individuals","190390248","08/11/2017","Looked After Children","LAC Education Team (LACE)","R6402"
"Wolverhampton City Council","http://opendatacommunities.org/id/metropolitan-district-council/wolverhampton","717602","Cherry Trees School","CTSI48","3,687.14","TPP - Independent Schools","130195421","15/11/2017","Standards and Vulnerable Pupils","SEN Education OOC","R5036"
"Wolverhampton City Council","http://opendatacommunities.org/id/metropolitan-district-council/wolverhampton","717602","Cherry Trees School","CTSI49","7,379.45","TPP - Independent Schools","130195422","15/11/2017","Standards and Vulnerable Pupils","SEN Education OOC","R5036"
"Wolverhampton City Council","http://opendatacommunities.org/id/metropolitan-district-council/wolverhampton","717602","Cherry Trees School","CTSI50","6,477.78","TPP - Independent Schools","130195423","15/11/2017","Standards and Vulnerable Pupils","SEN Education OOC","R5036"
"Wolverhampton City Council","http://opendatacommunities.org/id/metropolitan-district-council/wolverhampton","717602","Cherry Trees School","CTSI 45","5,328.37","TPP - Independent Schools","130195065","10/11/2017","Standards and Vulnerable Pupils","SEN Education OOC","R5036"
"Wolverhampton City Council","http://opendatacommunities.org/id/metropolitan-district-council/wolverhampton","717602","Cherry Trees School","CTSI44","21,063.51","TPP - Independent Schools","130195066","10/11/2017","Standards and Vulnerable Pupils","SEN Education OOC","R5036"
"Wolverhampton City Council","http://opendatacommunities.org/id/metropolitan-district-council/wolverhampton","717602","Cherry Trees School","CTSI 43","2,785.48","TPP - Independent Schools","130195064","10/11/2017","Standards and Vulnerable Pupils","SEN Education OOC","R5036"
"Wolverhampton City Council","http://opendatacommunities.org/id/metropolitan-district-council/wolverhampton","717652","Scotts Hire Limited","189309","396.00","Hire of Plant","130194246","29/11/2017","Environmental Maintenance","Ground Maintenance West","R3201"
"Wolverhampton City Council","http://opendatacommunities.org/id/metropolitan-district-council/wolverhampton","717652","Scotts Hire Limited","189310","396.00","Hire of Plant","130194247","29/11/2017","Environmental Maintenance","Ground Maintenance West","R3201"
"Wolverhampton City Council","http://opendatacommunities.org/id/metropolitan-district-council/wolverhampton","717654","Coram Baaf Adoption and Fostering Academy Ltd","PF142004","35.00","Publications","130195425","22/11/2017","Looked After Children","Adoption and Residence Team & Allowances","R4310"
"Wolverhampton City Council","http://opendatacommunities.org/id/metropolitan-district-council/wolverhampton","717654","Coram Baaf Adoption and Fostering Academy Ltd","PF142004","7.50","Publications","130195425","22/11/2017","Looked After Children","Adoption and Residence Team & Allowances","R4310"
"Wolverhampton City Council","http://opendatacommunities.org/id/metropolitan-district-council/wolverhampton","717673","Nageena Khalique QC","3610","462.50","Services - Professional Fees","130196178","22/11/2017","Legal Services","Centralised External Legal Costs","R4400"
"Wolverhampton City Council","http://opendatacommunities.org/id/metropolitan-district-council/wolverhampton","717681","Lake Consulting (Bradley) Ltd","WSAB MB1","3,150.00","Services - Professional Fees","130194429","29/11/2017","Safeguarding","Safeguarding Board - Childrens","R4400"
"Wolverhampton City Council","http://opendatacommunities.org/id/metropolitan-district-council/wolverhampton","717684","Jim Hudson","15LC - 019","450.00","No Recourse to Public Funds","130191248","01/11/2017","Child Protection","CIN/CP Social Work Unit - Area 4","R6314"
"Wolverhampton City Council","http://opendatacommunities.org/id/metropolitan-district-council/wolverhampton","717684","Jim Hudson","15LC - 020","450.00","No Recourse to Public Funds","130195991","29/11/2017","Child Protection","CIN/CP Social Work Unit - Area 4","R6314"
"Wolverhampton City Council","http://opendatacommunities.org/id/metropolitan-district-council/wolverhampton","717690","Building Research Establishment Ltd","65015712","1,000.00","Services - Fees and Charges","130190570","01/11/2017","Housing","Private Sector Housing","R4401"
"Wolverhampton City Council","http://opendatacommunities.org/id/metropolitan-district-council/wolverhampton","717719","Premium Linguistic Services","31733","108.00","Services - Translation fees","130193629","01/11/2017","Democratic Services","Coroners Service","R4406"
"Wolverhampton City Council","http://opendatacommunities.org/id/metropolitan-district-council/wolverhampton","717721","Aaron Williams","00009","720.00","TPP - Maintenance Contractor - General","190388382","01/11/2017","Transportation","Cycling Schemes - Bikeability","R5720"
"Wolverhampton City Council","http://opendatacommunities.org/id/metropolitan-district-council/wolverhampton","717737","Direct Digital Controls Limited","4709","485.00","R&M - Departmental planned (internal)","130194762","29/11/2017","Maintenance Programme","Centralised R&M","R2000"
"Wolverhampton City Council","http://opendatacommunities.org/id/metropolitan-district-council/wolverhampton","717743","Sanderson Funerals","HMCH 019","322.00","Hire of Vehicles","130195798","22/11/2017","Democratic Services","Coroners Service","R3200"
"Wolverhampton City Council","http://opendatacommunities.org/id/metropolitan-district-council/wolverhampton","717743","Sanderson Funerals","HMCC 019","530.00","Hire of Vehicles","130195797","17/11/2017","Democratic Services","Coroners Service","R3200"
"Wolverhampton City Council","http://opendatacommunities.org/id/metropolitan-district-council/wolverhampton","717752","Qlickit Limited","SI - 102178","1,600.00","Services - Professional Fees","130191845","01/11/2017","Digital Transformation Programme","Digital Transformation Programme","R4400"
"Wolverhampton City Council","http://opendatacommunities.org/id/metropolitan-district-council/wolverhampton","717752","Qlickit Limited","SI - 102091","4,000.00","Computing - Licences","130183172","24/11/2017","Corporate Communications","Insight and Performance","R4535"
"Wolverhampton City Council","http://opendatacommunities.org/id/metropolitan-district-council/wolverhampton","717752","Qlickit Limited","SI - 102219","1,600.00","Services - Professional Fees","130194763","29/11/2017","Digital Transformation Programme","Digital Transformation Programme","R4400"
"Wolverhampton City Council","http://opendatacommunities.org/id/metropolitan-district-council/wolverhampton","717763","ACRE Development Consulting","B1032","3,675.00","Services - Professional Fees","130195067","29/11/2017","City Development","Industrial Sites","R4400"
"Wolverhampton City Council","http://opendatacommunities.org/id/metropolitan-district-council/wolverhampton","717767","Henry Howard Finance Plc","WCC008","385.37","Services - Supplies and Services to service users","130191846","08/11/2017","Learning Disability Provider","City Links","R4408"
"Wolverhampton City Council","http://opendatacommunities.org/id/metropolitan-district-council/wolverhampton","717769","Hilton Main Lighting & Connections Ltd","485","3,576.70","R&M - Departmental response (external)","130192830","22/11/2017","Street Lighting","Street Lighting Maintenance","R2003"
"Wolverhampton City Council","http://opendatacommunities.org/id/metropolitan-district-council/wolverhampton","717814","Judith LeGrove","Michael Lyons: Full Circle","1,000.00","Services - Professional Fees","130193542","01/11/2017","Visitor Economy","Michael Lyons - NPO ACE WAG","R4400"
"Wolverhampton City Council","http://opendatacommunities.org/id/metropolitan-district-council/wolverhampton","717814","Judith LeGrove","Michael Lyons: Full Circle","-1,000.00","Services - Professional Fees","130193542","01/11/2017","Visitor Economy","Michael Lyons - NPO ACE WAG","R4400"
"Wolverhampton City Council","http://opendatacommunities.org/id/metropolitan-district-council/wolverhampton","717814","Judith LeGrove","Michael Lyons: Full Circle","1,000.00","Services - Professional Fees","130193542","01/11/2017","Visitor Economy","Michael Lyons - NPO ACE WAG","R4400"
"Wolverhampton City Council","http://opendatacommunities.org/id/metropolitan-district-council/wolverhampton","717827","Enabling Technology Limited","17710","3,825.99","Equipment - Purchase","130191431","01/11/2017","Child Protection","CIN/CP Social Work Unit - Area 1","R4000"
"Wolverhampton City Council","http://opendatacommunities.org/id/metropolitan-district-council/wolverhampton","717851","Norton Hill School","P15767620171103","600.00","Grant Payments to Individuals","190390248","08/11/2017","Looked After Children","LAC Education Team (LACE)","R6402"
"Wolverhampton City Council","http://opendatacommunities.org/id/metropolitan-district-council/wolverhampton","717851","Norton Hill School","P15767620171103","600.00","Grant Payments to Individuals","190390248","08/11/2017","Looked After Children","LAC Education Team (LACE)","R6402"
"Wolverhampton City Council","http://opendatacommunities.org/id/metropolitan-district-council/wolverhampton","717852","Wylde Green Primary School","P15767620171103","600.00","Grant Payments to Individuals","190390248","08/11/2017","Looked After Children","LAC Education Team (LACE)","R6402"
"Wolverhampton City Council","http://opendatacommunities.org/id/metropolitan-district-council/wolverhampton","717852","Wylde Green Primary School","P15767620171103","600.00","Grant Payments to Individuals","190390248","08/11/2017","Looked After Children","LAC Education Team (LACE)","R6402"
"Wolverhampton City Council","http://opendatacommunities.org/id/metropolitan-district-council/wolverhampton","717855","Wood Green Junior School","P15767620171103","600.00","Grant Payments to Individuals","190390248","08/11/2017","Looked After Children","LAC Education Team (LACE)","R6402"
"Wolverhampton City Council","http://opendatacommunities.org/id/metropolitan-district-council/wolverhampton","717855","Wood Green Junior School","P15767620171103","600.00","Grant Payments to Individuals","190390248","08/11/2017","Looked After Children","LAC Education Team (LACE)","R6402"
"Wolverhampton City Council","http://opendatacommunities.org/id/metropolitan-district-council/wolverhampton","717855","Wood Green Junior School","P15767620171103","600.00","Grant Payments to Individuals","190390248","08/11/2017","Looked After Children","LAC Education Team (LACE)","R6402"
"Wolverhampton City Council","http://opendatacommunities.org/id/metropolitan-district-council/wolverhampton","717927","R G Stones (Buildings) Ltd","4591","8,081.75","Construction and Conversion","130193926","08/11/2017","-","Primary Expansion Programme","C1100"
"Wolverhampton City Council","http://opendatacommunities.org/id/metropolitan-district-council/wolverhampton","717927","R G Stones (Buildings) Ltd","4617","-105.77","Construction and Conversion","130190571","08/11/2017","-","Primary Expansion Programme","C1100"
"Wolverhampton City Council","http://opendatacommunities.org/id/metropolitan-district-council/wolverhampton","717928","Birmingham Law Society","4536","40.00","Training Expenses","130191684","01/11/2017","Legal Services","Legal Services","R1650"
"Wolverhampton City Council","http://opendatacommunities.org/id/metropolitan-district-council/wolverhampton","717932","Servelec Synergy Limited","0033600577","2,100.00","Services - Professional Fees","130195303","17/11/2017","Early Intervention","HOS Early Intervention","R4400"
"Wolverhampton City Council","http://opendatacommunities.org/id/metropolitan-district-council/wolverhampton","717932","Servelec Synergy Limited","0033601253","638.00","Computing - Purchase of Software","130192831","15/11/2017","Early Intervention","HOS Early Intervention","R4531"
"Wolverhampton City Council","http://opendatacommunities.org/id/metropolitan-district-council/wolverhampton","717968","Boingboing Resilience CIC","371","500.00","Services - Professional Fees","130193630","22/11/2017","Headstart","Headstart Phase 3","R4400"
"Wolverhampton City Council","http://opendatacommunities.org/id/metropolitan-district-council/wolverhampton","718044","Shergroup Legal","5566","290.00","Services - Professional Fees","130194764","08/11/2017","Waste and Recycling Service","Waste Disposal - General","R4400"
"Wolverhampton City Council","http://opendatacommunities.org/id/metropolitan-district-council/wolverhampton","718080","DVLA Search","8021","10,000.00","Computing - Consumables","130194119","22/11/2017","Licensing","Licensing - Private Hire Vehicles","R4532"
"Wolverhampton City Council","http://opendatacommunities.org/id/metropolitan-district-council/wolverhampton","718094","Coram Childrens Legal Centre","21642","2,591.00","Services - Professional Fees","130193534","22/11/2017","Looked After Children","Fostering Team & Allowances","R4400"
"Wolverhampton City Council","http://opendatacommunities.org/id/metropolitan-district-council/wolverhampton","718137","Melanie Tomlinson","GHG02","1,000.00","Services - Professional Fees","130191432","01/11/2017","Visitor Economy","Jane & Louise Wilson - NPO ACE WAG","R4400"
"Wolverhampton City Council","http://opendatacommunities.org/id/metropolitan-district-council/wolverhampton","718137","Melanie Tomlinson","Inset 01","120.00","Services - Professional Fees","130191685","03/11/2017","Visitor Economy","Art Galleries - Schools Art SLA Service","R4400"
"Wolverhampton City Council","http://opendatacommunities.org/id/metropolitan-district-council/wolverhampton","718179","Turfleet Hire Ltd","186557","60.00","Comms - Postage","130192508","08/11/2017","Environmental Maintenance","Ground Maintenance West","R4503"
"Wolverhampton City Council","http://opendatacommunities.org/id/metropolitan-district-council/wolverhampton","718179","Turfleet Hire Ltd","186557","380.00","Hire of Plant","130192508","08/11/2017","Environmental Maintenance","Ground Maintenance West","R3201"
"Wolverhampton City Council","http://opendatacommunities.org/id/metropolitan-district-council/wolverhampton","718187","Auctus Training Solutions","469","2,200.00","Training Expenses","130196183","24/11/2017","Skills","IMPACT","R1650"
"Wolverhampton City Council","http://opendatacommunities.org/id/metropolitan-district-council/wolverhampton","718187","Auctus Training Solutions","439","6,600.00","Training Expenses","130196182","24/11/2017","Skills","IMPACT","R1650"
"Wolverhampton City Council","http://opendatacommunities.org/id/metropolitan-district-council/wolverhampton","718187","Auctus Training Solutions","432","8,800.00","Training Expenses","130196181","29/11/2017","Skills","IMPACT","R1650"
"Wolverhampton City Council","http://opendatacommunities.org/id/metropolitan-district-council/wolverhampton","718225","Panoramic Associates Limited","997477","7,000.00","Agency Staff","130194120","10/11/2017","Inclusion Support","Inclusion Support","R1100"
"Wolverhampton City Council","http://opendatacommunities.org/id/metropolitan-district-council/wolverhampton","718234","ADI UK Limited","28024","200.00","Marketing \ Non-staff advertising","130194529","29/11/2017","Markets","Wolverhampton Indoor and Open Market","R4317"
"Wolverhampton City Council","http://opendatacommunities.org/id/metropolitan-district-council/wolverhampton","718247","Carrie Slawinska","CS023","75.00","Services - Professional Fees","130193011","17/11/2017","Visitor Economy","Education And Access","R4400"
"Wolverhampton City Council","http://opendatacommunities.org/id/metropolitan-district-council/wolverhampton","718263","Lichfield Inflatables and Entertainments","9771","1,040.00","Equipment - Hire","130194899","15/11/2017","Leisure Services","Aldersley Leisure Village","R4001"
"Wolverhampton City Council","http://opendatacommunities.org/id/metropolitan-district-council/wolverhampton","718288","Recognition Express Limited","REH 49980","420.00","Marketing \ Non-staff advertising","130194430","08/11/2017","Headstart","Headstart - Learning Technologies Team","R4317"
"Wolverhampton City Council","http://opendatacommunities.org/id/metropolitan-district-council/wolverhampton","718288","Recognition Express Limited","REH 50209","1,251.50","Marketing \ Non-staff advertising","130195284","15/11/2017","School Planning & Resources","Education Data Services","R4317"
"Wolverhampton City Council","http://opendatacommunities.org/id/metropolitan-district-council/wolverhampton","718290","Autocraft Telford Ltd","20206","500.00","Insurance - General","130190958","01/11/2017","Environmental Maintenance","Ground Maintenance East","R4962"
"Wolverhampton City Council","http://opendatacommunities.org/id/metropolitan-district-council/wolverhampton","718290","Autocraft Telford Ltd","20206","910.92","Insurance - General","130190958","01/11/2017","Audit Services","Motor Vehicles","R4962"
"Wolverhampton City Council","http://opendatacommunities.org/id/metropolitan-district-council/wolverhampton","718290","Autocraft Telford Ltd","20592","934.53","Insurance - General","130192833","10/11/2017","Audit Services","Motor Vehicles","R4962"
"Wolverhampton City Council","http://opendatacommunities.org/id/metropolitan-district-council/wolverhampton","718290","Autocraft Telford Ltd","20592","500.00","Insurance - General","130192833","10/11/2017","Environmental Maintenance","Ground Maintenance West","R4962"
"Wolverhampton City Council","http://opendatacommunities.org/id/metropolitan-district-council/wolverhampton","718292","First Aid Warehouse","283789","15.15","Materials","130191434","03/11/2017","Early Intervention","EIP Locality 4 - Bingley","R4007"
"Wolverhampton City Council","http://opendatacommunities.org/id/metropolitan-district-council/wolverhampton","718292","First Aid Warehouse","10300","-6.95","Materials","130173958","03/11/2017","Catering","School Meals Statutory standards","R4007"
"Wolverhampton City Council","http://opendatacommunities.org/id/metropolitan-district-council/wolverhampton","718292","First Aid Warehouse","313318","2.40","Materials","130193770","22/11/2017","Specialist Support","Vulnerable Young Persons Team","R4007"
"Wolverhampton City Council","http://opendatacommunities.org/id/metropolitan-district-council/wolverhampton","718292","First Aid Warehouse","313318","0.75","Materials","130193770","22/11/2017","Specialist Support","Vulnerable Young Persons Team","R4007"
"Wolverhampton City Council","http://opendatacommunities.org/id/metropolitan-district-council/wolverhampton","718292","First Aid Warehouse","313318","0.24","Materials","130193770","22/11/2017","Specialist Support","Vulnerable Young Persons Team","R4007"
"Wolverhampton City Council","http://opendatacommunities.org/id/metropolitan-district-council/wolverhampton","718292","First Aid Warehouse","313318","1.10","Materials","130193770","22/11/2017","Specialist Support","Vulnerable Young Persons Team","R4007"
"Wolverhampton City Council","http://opendatacommunities.org/id/metropolitan-district-council/wolverhampton","718292","First Aid Warehouse","313318","0.80","Materials","130193770","22/11/2017","Specialist Support","Vulnerable Young Persons Team","R4007"
"Wolverhampton City Council","http://opendatacommunities.org/id/metropolitan-district-council/wolverhampton","718292","First Aid Warehouse","313318","1.60","Materials","130193770","22/11/2017","Specialist Support","Vulnerable Young Persons Team","R4007"
"Wolverhampton City Council","http://opendatacommunities.org/id/metropolitan-district-council/wolverhampton","718292","First Aid Warehouse","313318","9.95","Materials","130193770","22/11/2017","Specialist Support","Vulnerable Young Persons Team","R4007"
"Wolverhampton City Council","http://opendatacommunities.org/id/metropolitan-district-council/wolverhampton","718292","First Aid Warehouse","313318","2.15","Materials","130193770","22/11/2017","Specialist Support","Vulnerable Young Persons Team","R4007"
"Wolverhampton City Council","http://opendatacommunities.org/id/metropolitan-district-council/wolverhampton","718292","First Aid Warehouse","313100","20.00","Materials","130194431","24/11/2017","Older People Provider Services","Bradley Lodge Resource Centre","R4007"
"Wolverhampton City Council","http://opendatacommunities.org/id/metropolitan-district-council/wolverhampton","718292","First Aid Warehouse","313100","22.00","Materials","130194431","24/11/2017","Older People Provider Services","Bradley Lodge Resource Centre","R4007"
"Wolverhampton City Council","http://opendatacommunities.org/id/metropolitan-district-council/wolverhampton","718292","First Aid Warehouse","313100","6.95","Comms - Postage","130194431","24/11/2017","Older People Provider Services","Bradley Lodge Resource Centre","R4503"
"Wolverhampton City Council","http://opendatacommunities.org/id/metropolitan-district-council/wolverhampton","718320","Tom Vehicle Rental","19004531","176.00","Hire of Vehicles","190392512","15/11/2017","Fleet Services","Fleet Management","R3200"
"Wolverhampton City Council","http://opendatacommunities.org/id/metropolitan-district-council/wolverhampton","718320","Tom Vehicle Rental","192004532","176.00","Hire of Vehicles","190392513","15/11/2017","Fleet Services","Fleet Management","R3200"
"Wolverhampton City Council","http://opendatacommunities.org/id/metropolitan-district-council/wolverhampton","718320","Tom Vehicle Rental","7044788","176.00","Hire of Vehicles","190392533","15/11/2017","Fleet Services","Fleet Management","R3200"
"Wolverhampton City Council","http://opendatacommunities.org/id/metropolitan-district-council/wolverhampton","718320","Tom Vehicle Rental","7044789","176.00","Hire of Vehicles","190392534","15/11/2017","Fleet Services","Fleet Management","R3200"
"Wolverhampton City Council","http://opendatacommunities.org/id/metropolitan-district-council/wolverhampton","718320","Tom Vehicle Rental","7044790","176.00","Hire of Vehicles","190392535","15/11/2017","Fleet Services","Fleet Management","R3200"
"Wolverhampton City Council","http://opendatacommunities.org/id/metropolitan-district-council/wolverhampton","718320","Tom Vehicle Rental","7044791","176.00","Hire of Vehicles","190392536","15/11/2017","Fleet Services","Fleet Management","R3200"
"Wolverhampton City Council","http://opendatacommunities.org/id/metropolitan-district-council/wolverhampton","718320","Tom Vehicle Rental","7044792","176.00","Hire of Vehicles","190392537","15/11/2017","Fleet Services","Fleet Management","R3200"
"Wolverhampton City Council","http://opendatacommunities.org/id/metropolitan-district-council/wolverhampton","718320","Tom Vehicle Rental","7044793","176.00","Hire of Vehicles","190392538","15/11/2017","Fleet Services","Fleet Management","R3200"
"Wolverhampton City Council","http://opendatacommunities.org/id/metropolitan-district-council/wolverhampton","718320","Tom Vehicle Rental","7044794","176.00","Hire of Vehicles","190392539","15/11/2017","Fleet Services","Fleet Management","R3200"
"Wolverhampton City Council","http://opendatacommunities.org/id/metropolitan-district-council/wolverhampton","718320","Tom Vehicle Rental","7044738","32.00","Hire of Vehicles","190392532","15/11/2017","Fleet Services","Fleet Management","R3200"
"Wolverhampton City Council","http://opendatacommunities.org/id/metropolitan-district-council/wolverhampton","718321","London Hire Ltd","582318","603.90","Hire of Vehicles","190392517","15/11/2017","Fleet Services","Fleet Management","R3200"
"Wolverhampton City Council","http://opendatacommunities.org/id/metropolitan-district-council/wolverhampton","718321","London Hire Ltd","582319","603.90","Hire of Vehicles","190392518","15/11/2017","Fleet Services","Fleet Management","R3200"
"Wolverhampton City Council","http://opendatacommunities.org/id/metropolitan-district-council/wolverhampton","718321","London Hire Ltd","5840","-42.00","Hire of Vehicles","190392527","15/11/2017","Fleet Services","Fleet Management","R3200"
"Wolverhampton City Council","http://opendatacommunities.org/id/metropolitan-district-council/wolverhampton","718321","London Hire Ltd","582325","924.00","Hire of Vehicles","190392524","15/11/2017","Fleet Services","Fleet Management","R3200"
"Wolverhampton City Council","http://opendatacommunities.org/id/metropolitan-district-council/wolverhampton","718321","London Hire Ltd","582320","924.00","Hire of Vehicles","190392519","15/11/2017","Fleet Services","Fleet Management","R3200"
"Wolverhampton City Council","http://opendatacommunities.org/id/metropolitan-district-council/wolverhampton","718321","London Hire Ltd","582321","603.90","Hire of Vehicles","190392520","15/11/2017","Fleet Services","Fleet Management","R3200"
"Wolverhampton City Council","http://opendatacommunities.org/id/metropolitan-district-council/wolverhampton","718321","London Hire Ltd","582322","603.90","Hire of Vehicles","190392521","15/11/2017","Fleet Services","Fleet Management","R3200"
"Wolverhampton City Council","http://opendatacommunities.org/id/metropolitan-district-council/wolverhampton","718321","London Hire Ltd","582767","924.00","Hire of Vehicles","190392526","15/11/2017","Fleet Services","Fleet Management","R3200"
"Wolverhampton City Council","http://opendatacommunities.org/id/metropolitan-district-council/wolverhampton","718321","London Hire Ltd","582323","330.00","Hire of Vehicles","190392522","15/11/2017","Fleet Services","Fleet Management","R3200"
"Wolverhampton City Council","http://opendatacommunities.org/id/metropolitan-district-council/wolverhampton","718321","London Hire Ltd","582324","42.00","Hire of Vehicles","190392523","15/11/2017","Fleet Services","Fleet Management","R3200"
"Wolverhampton City Council","http://opendatacommunities.org/id/metropolitan-district-council/wolverhampton","718321","London Hire Ltd","582326","330.00","Hire of Vehicles","190392525","15/11/2017","Fleet Services","Fleet Management","R3200"
"Wolverhampton City Council","http://opendatacommunities.org/id/metropolitan-district-council/wolverhampton","718344","Charter Office Equipment Limited","172351","5,991.20","Furniture","130195802","22/11/2017","Learning Disability Provider","Learning Disabilities Management","R4004"
"Wolverhampton City Council","http://opendatacommunities.org/id/metropolitan-district-council/wolverhampton","718345","Institute of Acoustics","133363","3,900.00","Training Expenses","130195287","29/11/2017","Public Protection","Food Hygiene Courses","R1650"
"Wolverhampton City Council","http://opendatacommunities.org/id/metropolitan-district-council/wolverhampton","718349","Dr Shaheen Yousaf Chaudhry","SC2737/2879","5,737.80","Services - Professional Fees","190388345","01/11/2017","Safeguarding","MCA General","R4400"
"Wolverhampton City Council","http://opendatacommunities.org/id/metropolitan-district-council/wolverhampton","718366","West Midlands Combined Authority","651329","73,880.00","External Professional Fees","130194530","29/11/2017","-","GF - Interchange - Ph2 Train Station/MSCP/Metro Extension","C6002"
"Wolverhampton City Council","http://opendatacommunities.org/id/metropolitan-district-council/wolverhampton","718366","West Midlands Combined Authority","651216","10,879.00","Payroll Control Account - Travel Card Scheme","130193012","15/11/2017","-","General Fund Balance Sheet","B3350"
"Wolverhampton City Council","http://opendatacommunities.org/id/metropolitan-district-council/wolverhampton","718366","West Midlands Combined Authority","651216","-10,879.00","Payroll Control Account - Travel Card Scheme","130193012","15/11/2017","-","General Fund Balance Sheet","B3350"
"Wolverhampton City Council","http://opendatacommunities.org/id/metropolitan-district-council/wolverhampton","718366","West Midlands Combined Authority","651216","10,879.00","Payroll Control Account - Travel Card Scheme","130193012","15/11/2017","-","General Fund Balance Sheet","B3350"
"Wolverhampton City Council","http://opendatacommunities.org/id/metropolitan-district-council/wolverhampton","718367","Certas Energy UK","8872928","351.50","Equipment - Purchase","190397175","24/11/2017","Fleet Services","Fleet Management","R4000"
"Wolverhampton City Council","http://opendatacommunities.org/id/metropolitan-district-council/wolverhampton","718367","Certas Energy UK","8722686","1,213.49","Heating Oil","130193927","15/11/2017","Environmental Maintenance","Ground Maintenance East","R2102"
"Wolverhampton City Council","http://opendatacommunities.org/id/metropolitan-district-council/wolverhampton","718367","Certas Energy UK","8707104","81.60","Equipment - Purchase","190391084","08/11/2017","Fleet Services","Fleet Management","R4000"
"Wolverhampton City Council","http://opendatacommunities.org/id/metropolitan-district-council/wolverhampton","718367","Certas Energy UK","8707104","99.07","Equipment - Purchase","190391084","08/11/2017","Fleet Services","Fleet Management","R4000"
"Wolverhampton City Council","http://opendatacommunities.org/id/metropolitan-district-council/wolverhampton","718367","Certas Energy UK","8707104","189.00","Equipment - Purchase","190391084","08/11/2017","Fleet Services","Fleet Management","R4000"
"Wolverhampton City Council","http://opendatacommunities.org/id/metropolitan-district-council/wolverhampton","718367","Certas Energy UK","8694395","963.61","Heating Oil","130193013","10/11/2017","Highways Maintenance","Patching","R2102"
"Wolverhampton City Council","http://opendatacommunities.org/id/metropolitan-district-council/wolverhampton","718376","Westbury Health Limited","DA043117 BURGEN Corey","96.38","Services - Professional Fees","130181287","01/11/2017","Child Protection","Head of Service - CINCP","R4400"
"Wolverhampton City Council","http://opendatacommunities.org/id/metropolitan-district-council/wolverhampton","718376","Westbury Health Limited","DA090116/WOOD A","117.97","Services - Professional Fees","130180978","15/11/2017","Child Protection","Head of Service - CINCP","R4400"
"Wolverhampton City Council","http://opendatacommunities.org/id/metropolitan-district-council/wolverhampton","718391","Woden Road Surgery","IMHC 004 July-Sept 2017","945.00","TPP - Public Health Contracts","190389905","03/11/2017","Contracts","Wider determinants","R5060"
"Wolverhampton City Council","http://opendatacommunities.org/id/metropolitan-district-council/wolverhampton","718395","Beyond Curious Ltd","0203","2,222.50","Marketing \ Non-staff advertising","130190574","01/11/2017","Corporate Communications","Communications & Marketing - General","R4317"
"Wolverhampton City Council","http://opendatacommunities.org/id/metropolitan-district-council/wolverhampton","718413","Harj Bains Estate Agents","0004568","425.00","Rent","130196185","29/11/2017","Child Protection","CIN/CP Social Work Unit - Area 3","R2200"
"Wolverhampton City Council","http://opendatacommunities.org/id/metropolitan-district-council/wolverhampton","718413","Harj Bains Estate Agents","0004569","425.00","Rent","130196186","22/11/2017","Child Protection","CIN/CP Social Work Unit - Area 3","R2200"
"Wolverhampton City Council","http://opendatacommunities.org/id/metropolitan-district-council/wolverhampton","718431","Helena Liberadzki","00009","30.00","TPP - Maintenance Contractor - General","190388382","01/11/2017","Transportation","Cycling Schemes - Bikeability","R5720"
"Wolverhampton City Council","http://opendatacommunities.org/id/metropolitan-district-council/wolverhampton","718433","Daniel Booth","00009","320.00","TPP - Maintenance Contractor - General","190388382","01/11/2017","Transportation","Cycling Schemes - Bikeability","R5720"
"Wolverhampton City Council","http://opendatacommunities.org/id/metropolitan-district-council/wolverhampton","718437","Naomi Greaves","150917","937.50","Services - Professional Fees","130193772","01/11/2017","Visitor Economy","Technical Support - ACE NPO WAG","R4400"
"Wolverhampton City Council","http://opendatacommunities.org/id/metropolitan-district-council/wolverhampton","718437","Naomi Greaves","240717","100.00","Services - Professional Fees","130193774","01/11/2017","Visitor Economy","Technical Support - ACE NPO WAG","R4400"
"Wolverhampton City Council","http://opendatacommunities.org/id/metropolitan-district-council/wolverhampton","718437","Naomi Greaves","240717/NHM","843.75","Services - Professional Fees","130193775","01/11/2017","Visitor Economy","Technical Support - ACE NPO WAG","R4400"
"Wolverhampton City Council","http://opendatacommunities.org/id/metropolitan-district-council/wolverhampton","718437","Naomi Greaves","1110172","568.75","Services - Professional Fees","130193771","01/11/2017","Visitor Economy","Technical Support - ACE NPO WAG","R4400"
"Wolverhampton City Council","http://opendatacommunities.org/id/metropolitan-district-council/wolverhampton","718437","Naomi Greaves","1509172","475.00","Services - Professional Fees","130193773","01/11/2017","Visitor Economy","Technical Support - ACE NPO WAG","R4400"
"Wolverhampton City Council","http://opendatacommunities.org/id/metropolitan-district-council/wolverhampton","718450","Furnace Mill Fishery Ltd","126","250.00","R&M - Departmental response (external)","130191686","08/11/2017","Environmental Maintenance","Parks - East Area Management","R2003"
"Wolverhampton City Council","http://opendatacommunities.org/id/metropolitan-district-council/wolverhampton","718472","Mars Chocolate UK Ltd","2928","130.00","Equipment - R & M","130193776","22/11/2017","Catering","Education Catering - General Overheads","R4003"
"Wolverhampton City Council","http://opendatacommunities.org/id/metropolitan-district-council/wolverhampton","718481","Miss Tracy Lakin","INVTL17","1,238.80","Services - Professional Fees","130193014","10/11/2017","Legal Services","Centralised External Legal Costs","R4400"
"Wolverhampton City Council","http://opendatacommunities.org/id/metropolitan-district-council/wolverhampton","718489","PowerON Platforms Ltd","1610","6,050.00","Intangible Assets / Computer Software","130193777","22/11/2017","-","ICT General Programme","C4005"
"Wolverhampton City Council","http://opendatacommunities.org/id/metropolitan-district-council/wolverhampton","718490","NCH CONSULTANCY SERVICES LTD","NCHCS2407","5,700.00","Services - Consultants","130192366","10/11/2017","Corporate Asset Management","Assets Service Transformation Programme","R4404"
"Wolverhampton City Council","http://opendatacommunities.org/id/metropolitan-district-council/wolverhampton","718497","11KBW Limited","100146","750.00","Services - Professional Fees","130191143","01/11/2017","Legal Services","Centralised External Legal Costs","R4400"
"Wolverhampton City Council","http://opendatacommunities.org/id/metropolitan-district-council/wolverhampton","718497","11KBW Limited","100615 19/10/2017","720.00","Services - Professional Fees","130193015","15/11/2017","Legal Services","Centralised External Legal Costs","R4400"
"Wolverhampton City Council","http://opendatacommunities.org/id/metropolitan-district-council/wolverhampton","718497","11KBW Limited","HD/SCP011173","1,500.00","Services - Professional Fees","130191144","01/11/2017","Legal Services","Centralised External Legal Costs","R4400"
"Wolverhampton City Council","http://opendatacommunities.org/id/metropolitan-district-council/wolverhampton","718536","Protel Health Limited","4120","3,333.20","Equipment - Purchase","130194432","08/11/2017","Independent Living Service","Telecare","R4000"
"Wolverhampton City Council","http://opendatacommunities.org/id/metropolitan-district-council/wolverhampton","718543","Campus Living Villages","P15892320171117","149.00","Client Allowances","190394327","22/11/2017","Looked After Children","LAC Transitions Team","R6301"
"Wolverhampton City Council","http://opendatacommunities.org/id/metropolitan-district-council/wolverhampton","718543","Campus Living Villages","P15956620171127","149.00","Client Allowances","190397978","29/11/2017","Looked After Children","LAC Transitions Team","R6301"
"Wolverhampton City Council","http://opendatacommunities.org/id/metropolitan-district-council/wolverhampton","718543","Campus Living Villages","P15816620171110","149.00","TPP - Placement Foster Care Inhouse","190392025","15/11/2017","Looked After Children","LAC Transitions Team","R5601"
"Wolverhampton City Council","http://opendatacommunities.org/id/metropolitan-district-council/wolverhampton","718543","Campus Living Villages","P15716320171027","149.00","Client Allowances","190388202","01/11/2017","Looked After Children","LAC Transitions Team","R6301"
"Wolverhampton City Council","http://opendatacommunities.org/id/metropolitan-district-council/wolverhampton","718543","Campus Living Villages","P15768120171103","149.00","TPP - Placement Foster Care Inhouse","190390253","08/11/2017","Looked After Children","LAC Transitions Team","R5601"
"Wolverhampton City Council","http://opendatacommunities.org/id/metropolitan-district-council/wolverhampton","718552","Chris Broughton","WAG010","1,500.00","Services - Professional Fees","130193535","15/11/2017","Visitor Economy","Curatorial - Cultural Learning","R4400"
"Wolverhampton City Council","http://opendatacommunities.org/id/metropolitan-district-council/wolverhampton","718552","Chris Broughton","WAG011","750.00","Services - Professional Fees","130194765","29/11/2017","Visitor Economy","Curatorial - Cultural Learning","R4400"
"Wolverhampton City Council","http://opendatacommunities.org/id/metropolitan-district-council/wolverhampton","718579","Target Information Systems Limited","SI - 1064","2,500.00","Computing - Purchase of Software","130191848","08/11/2017","Commercial Services","Corporate Procurement Unit","R4531"
"Wolverhampton City Council","http://opendatacommunities.org/id/metropolitan-district-council/wolverhampton","718603","Project Farm","1017B1C","150.00","Services - Professional Fees","130197330","29/11/2017","Looked After Children","Pupil Premium","R4400"
"Wolverhampton City Council","http://opendatacommunities.org/id/metropolitan-district-council/wolverhampton","718617","Tom Bloor","193_241017","400.00","Services - Professional Fees","130193928","22/11/2017","Visitor Economy","Technical Support - ACE NPO WAG","R4400"
"Wolverhampton City Council","http://opendatacommunities.org/id/metropolitan-district-council/wolverhampton","718617","Tom Bloor","194_241017","200.00","Services - Professional Fees","130193634","22/11/2017","Visitor Economy","Technical Support - ACE NPO WAG","R4400"
"Wolverhampton City Council","http://opendatacommunities.org/id/metropolitan-district-council/wolverhampton","718618","Simon Bloor","WOLV_03_24_10_17","200.00","Services - Professional Fees","130193635","22/11/2017","Visitor Economy","Technical Support - ACE NPO WAG","R4400"
"Wolverhampton City Council","http://opendatacommunities.org/id/metropolitan-district-council/wolverhampton","718684","Jean Bryant","769","239.05","Services - Professional Fees","130195993","29/11/2017","Service Director Children & Young People","Children & Young People Support Costs","R4400"
"Wolverhampton City Council","http://opendatacommunities.org/id/metropolitan-district-council/wolverhampton","718684","Jean Bryant","769","-239.05","Services - Professional Fees","130195993","29/11/2017","Service Director Children & Young People","Children & Young People Support Costs","R4400"
"Wolverhampton City Council","http://opendatacommunities.org/id/metropolitan-district-council/wolverhampton","718684","Jean Bryant","769","239.05","Services - Professional Fees","130195993","29/11/2017","Service Director Children & Young People","Children & Young People Support Costs","R4400"
"Wolverhampton City Council","http://opendatacommunities.org/id/metropolitan-district-council/wolverhampton","718702","The National Teaching and Advisory Service","9825733","953.50","TPP - Alternative Provision of Education","130194766","10/11/2017","Standards and Vulnerable Pupils","Post 16 SEN Provision","R5037"
"Wolverhampton City Council","http://opendatacommunities.org/id/metropolitan-district-council/wolverhampton","718702","The National Teaching and Advisory Service","9826733","953.50","TPP - Alternative Provision of Education","130194901","10/11/2017","Standards and Vulnerable Pupils","Post 16 SEN Provision","R5037"
"Wolverhampton City Council","http://opendatacommunities.org/id/metropolitan-district-council/wolverhampton","718707","Knights Travel","3","880.00","Client Transport","130149315","15/11/2017","School Planning & Resources","Special - Transport","R3042"
"Wolverhampton City Council","http://opendatacommunities.org/id/metropolitan-district-council/wolverhampton","718707","Knights Travel","30","880.00","Client Transport","130149316","15/11/2017","School Planning & Resources","Special - Transport","R3042"
"Wolverhampton City Council","http://opendatacommunities.org/id/metropolitan-district-council/wolverhampton","718709","Hilton Studio","61722","515.00","Equipment - Purchase","130191687","01/11/2017","Leisure Services","Aldersley Leisure Village","R4000"
"Wolverhampton City Council","http://opendatacommunities.org/id/metropolitan-district-council/wolverhampton","718749","W-ton Business Crime Reduction Group CIC","0006","6,000.00","Grant Payments","130192008","08/11/2017","Community Safety","SWP - Locations","R4700"
"Wolverhampton City Council","http://opendatacommunities.org/id/metropolitan-district-council/wolverhampton","718752","Hydrock Contracting Ltd","INV007299","35,854.79","Construction and Conversion","130191689","03/11/2017","-","Site Remediation Farndale","C1100"
"Wolverhampton City Council","http://opendatacommunities.org/id/metropolitan-district-council/wolverhampton","718752","Hydrock Contracting Ltd","INV007300","269,311.19","Construction and Conversion","130191690","03/11/2017","-","Site Remediation Farndale","C1100"
"Wolverhampton City Council","http://opendatacommunities.org/id/metropolitan-district-council/wolverhampton","718754","Liddell Electrical Distributors","8048682 - 00","197.25","Materials","130190960","24/11/2017","Street Lighting","Christmas Illuminations","R4007"
"Wolverhampton City Council","http://opendatacommunities.org/id/metropolitan-district-council/wolverhampton","718754","Liddell Electrical Distributors","8048217 - 00","181.10","Materials","130197160","29/11/2017","Street Lighting","Street Lighting Maintenance","R4007"
"Wolverhampton City Council","http://opendatacommunities.org/id/metropolitan-district-council/wolverhampton","718754","Liddell Electrical Distributors","8048726 - 00","5.56","Materials","130197167","29/11/2017","Street Lighting","Street Lighting Maintenance","R4007"
"Wolverhampton City Council","http://opendatacommunities.org/id/metropolitan-district-council/wolverhampton","718754","Liddell Electrical Distributors","8048420 - 00","362.52","R&M - Departmental planned (external)","130197164","29/11/2017","Facilities Management","Culwell Street Depot","R2001"
"Wolverhampton City Council","http://opendatacommunities.org/id/metropolitan-district-council/wolverhampton","718754","Liddell Electrical Distributors","8049061 - 00","1,489.59","Materials","130193536","24/11/2017","Street Lighting","Street Lighting Maintenance","R4007"
"Wolverhampton City Council","http://opendatacommunities.org/id/metropolitan-district-council/wolverhampton","718754","Liddell Electrical Distributors","8049061 - 00","-1,489.59","Materials","130193536","24/11/2017","Street Lighting","Street Lighting Maintenance","R4007"
"Wolverhampton City Council","http://opendatacommunities.org/id/metropolitan-district-council/wolverhampton","718754","Liddell Electrical Distributors","8049061 - 00","307.40","Materials","130193536","24/11/2017","Street Lighting","Street Lighting Maintenance","R4007"
"Wolverhampton City Council","http://opendatacommunities.org/id/metropolitan-district-council/wolverhampton","718754","Liddell Electrical Distributors","8049061 - 01","1,141.95","Materials","130194248","24/11/2017","Street Lighting","Street Lighting Maintenance","R4007"
"Wolverhampton City Council","http://opendatacommunities.org/id/metropolitan-district-council/wolverhampton","718754","Liddell Electrical Distributors","8048700 - 00","1,489.59","Materials","130193400","24/11/2017","Street Lighting","Street Lighting Maintenance","R4007"
"Wolverhampton City Council","http://opendatacommunities.org/id/metropolitan-district-council/wolverhampton","718754","Liddell Electrical Distributors","8048700 - 00","-1,489.59","Materials","130193400","24/11/2017","Street Lighting","Street Lighting Maintenance","R4007"
"Wolverhampton City Council","http://opendatacommunities.org/id/metropolitan-district-council/wolverhampton","718754","Liddell Electrical Distributors","8048700 - 00","38.14","Materials","130193400","24/11/2017","Street Lighting","Street Lighting Maintenance","R4007"
"Wolverhampton City Council","http://opendatacommunities.org/id/metropolitan-district-council/wolverhampton","718754","Liddell Electrical Distributors","8048519-00","-793.80","Materials","130189599","24/11/2017","Street Lighting","Signs Illuminated","R4007"
"Wolverhampton City Council","http://opendatacommunities.org/id/metropolitan-district-council/wolverhampton","718758","Heantun Childcare Bushbury Neighbhd Nurs","0000013368","570.00","TPP - Private Nursery Education Funding","130181303","08/11/2017","Child Protection","CIN/CP Social Work Unit - Area 4","R5035"
"Wolverhampton City Council","http://opendatacommunities.org/id/metropolitan-district-council/wolverhampton","718758","Heantun Childcare Bushbury Neighbhd Nurs","3","180.00","TPP - Private Nursery Education Funding","130172512","08/11/2017","Child Protection","CIN/CP Social Work Unit - Area 4","R5035"
"Wolverhampton City Council","http://opendatacommunities.org/id/metropolitan-district-council/wolverhampton","718758","Heantun Childcare Bushbury Neighbhd Nurs","September 2017","255.50","TPP - Private Nursery Education Funding","130190239","08/11/2017","Child Protection","CIN/CP Social Work Unit - Area 4","R5035"
"Wolverhampton City Council","http://opendatacommunities.org/id/metropolitan-district-council/wolverhampton","718758","Heantun Childcare Bushbury Neighbhd Nurs","October 2017","331.50","TPP - Private Nursery Education Funding","130190238","08/11/2017","Child Protection","CIN/CP Social Work Unit - Area 4","R5035"
"Wolverhampton City Council","http://opendatacommunities.org/id/metropolitan-district-council/wolverhampton","718758","Heantun Childcare Bushbury Neighbhd Nurs","7","380.00","TPP - Private Nursery Education Funding","130172513","08/11/2017","Child Protection","CIN/CP Social Work Unit - Area 4","R5035"
"Wolverhampton City Council","http://opendatacommunities.org/id/metropolitan-district-council/wolverhampton","718758","Heantun Childcare Bushbury Neighbhd Nurs","November 2017","727.20","TPP - Private Nursery Education Funding","130193778","22/11/2017","Child Protection","CIN/CP Social Work Unit - Area 4","R5035"
"Wolverhampton City Council","http://opendatacommunities.org/id/metropolitan-district-council/wolverhampton","718758","Heantun Childcare Bushbury Neighbhd Nurs","2","760.00","TPP - Private Nursery Education Funding","130172511","08/11/2017","Child Protection","CIN/CP Social Work Unit - Area 4","R5035"
